{"text_format":"1","workbook":"xlsx","n_sheets":20,"sheets":["Eingabeblatt","Deckblatt","Daten","Schallschutzausweis ausführlich","Schallschutzausweis einfach","Hinweise","LS Decken","TS Decken","TS Treppen, Podeste, Hausflure","TS Balkone, Loggien, Terrassen","LS Eingangstüren","LS Außenbauteile","Wasserinst., haustech. Anlagen","Nutzergeräusche, KHW","Baulicher Schallschutz (GR)","eigener Wohnbereich","Gebietscharakter","Außenlärmpegel","LS Wände","Baulicher Schallschutz (NHZ)"],"not_rendered":{"charts":0,"images":2,"macros":1,"external_links":0,"defined_names":5,"comments":0,"pivot_tables":0},"unopened":[],"bounds":{"document_bytes":16777216,"sheet_cells":100000,"rows_first":2000,"rows_last":500,"rows_between":2000,"halvings":0,"cell_chars":16384,"cell_head_chars":4096},"cells_cut":0,"cells_raw":0,"read":"whole","date_system":"1900"}

{"sheet":"Eingabeblatt","index":0,"n_rows":105,"n_cols":26,"rows_kept":105,"cut":false,"hidden":false,"merged":[[44,6,44,11],[86,6,86,7],[97,6,97,11],[9,2,9,6],[8,4,8,6],[24,5,24,13],[3,1,3,12],[80,6,80,11],[33,5,33,13],[32,5,32,13],[39,1,39,11],[34,5,34,13],[42,6,42,11],[41,1,41,11],[22,7,22,13],[75,1,75,11],[34,1,34,4],[56,1,56,11],[47,1,47,11],[40,6,40,11],[23,7,23,13],[31,8,31,13],[99,6,99,11],[77,6,77,7],[81,1,81,11],[85,1,85,11],[95,6,95,11],[92,1,92,11],[93,6,93,11],[90,1,90,11],[98,1,98,11],[79,1,79,11],[94,1,94,11],[96,1,96,11],[108,5,108,6],[7,4,7,6],[5,4,5,6],[6,4,6,6],[30,5,30,13],[20,5,20,13],[12,5,12,13],[13,5,13,13],[14,5,14,13],[19,5,19,13],[15,7,15,13],[21,5,21,13],[25,5,25,13],[91,6,91,11],[23,5,23,6],[76,6,76,11]]}
[]
[null,"Schallschutzausweis Eingabeblatt"]
[]
[]
[null,"Aussteller: "]
[null,null,"Name:",null,null,null,null,null,null,"Datum:"]
[null,null,"Zusatz:"]
[null,null,"Straße, Nr.:",null,null,null,null,null,null,"Gültig bis:",{"$f":"IF(K6=\"\",\"\",DATE(YEAR(K6)+10,MONTH(K6),DAY(K6)))","v":""}]
[null,null,"PLZ, Ort:"]
[]
[]
[]
[null,"Antragsteller:"]
[]
[]
[null,null,null,null,null,null,"Ort "]
[]
[]
[]
[null,"Gebäude"]
[]
[]
[null,null,null,null,null,"","Ort "]
[null,"Gebäudetyp"]
[null,"Baujahr des Gebäudes"]
[null,"Anzahl der Wohneinheiten"]
[null,null,null,null,null,""]
[]
[null,null,null,null,null,""]
[null,"Wohneinheit",null,null,null,""]
[null,"Bezeichnung der Wohneinheit"]
[null,"Geschoss",null,null,null,null,"Geschossnr. "]
[null,"Anzahl der Räume"]
[null,"Wohnfläche [m²]"]
[null,"Baukosten je m² Wohnfläche"]
[]
[]
[]
[null,"Standort und Außenlärmsituation"]
[null,"Gebietscharakter:",null,null,null,null,null,null,null,null,null,null,null,null,null,"i"]
[null,null,null,null,null,null,""]
[null,"Außenlärmsituation:",null,null,null,null,null,null,null,null,null,null,null,null,null,"i"]
[null,null,"maßgeblicher Außenlärmpegel in dB(A)",null,null,null,""]
[]
[null,null,"Freibereich abgewandt",null,null,null,""]
[]
[null,"Baulicher Schallschutz"]
[null,"Luftschall",null,null,null,null,"Prognose","Messanteil in %","Messverfahren","C50-2500 in dB","R'w in dB",null,null,null,null,null,null,null,null,null,"Bonus:"]
[null,null,"Wände:",null,null,null,"nicht vorhanden",null,null,null,null,null,null,null,null,"i"]
[null,null,null,null,null,null,"R'w in dB",null,null,null,null,null,null,null,null,null,null,null,null,{"$f":"IF(H50=\"\",\"\",IF(H50>=72,50,IF(H50>=67,40,IF(H50>=62,30,IF(H50>=56,20,IF(H50>=53,10,IF(H50>=50,5,IF(H50<>\"\",0,\"\"))))))))","v":""},{"$f":"IF($H50=\"\",\"\",IF($H$51=\"\",0,IF($H$50>=72,IF($H$50+$H$51>=72,4,0),IF($H$50 >= 67,IF($H$50+$H$51>=67,4,0),IF($H$50 >= 62, IF($H$50+$H$51>=62,4,0),IF($H$50 >= 56,IF($H$50+$H$51>=56,4,0),IF($H$50 >= 53, IF($H$50+$H$51>=53,4,0),IF($H$50>=50,IF($H$50+$H$51>=50,4,0),IF($H$50+$H$51<>\"\",0,\"\")))))))))","v":""},{"$f":"IF(G49=\"Messung\",8,0)","v":0}]
[null,null,null,null,null,null,"Ctr,50-3150 in dB"]
[]
[null,null,"Decken:",null,null,null,"nicht vorhanden",null,null,null,null,null,null,null,null,"i"]
[null,null,null,null,null,null,"R'w in dB",null,null,null,null,null,null,null,null,null,null,null,null,{"$f":"IF($H54=\"\",\"\",IF($H54>=72,50,IF($H54>=67,40,IF($H54>=62,30,IF($H54>=57,20,IF($H54>=54,10,IF($H54>=50,5,IF($H54<>\"\",0,\"\"))))))))","v":""},{"$f":"IF($H54=\"\",\"\",IF($H$55=\"\",0,IF($H54>=72, IF($H55+$H54>=72,4,0), IF($H54>=67, IF($H55+$H54>=67,4,0),IF($H54>=62, IF($H55+$H54>=62,4,0),IF($H54>=57, IF($H55+$H54>=57,4,0),IF($H54>=54,IF($H55+$H54>=54,4,0),IF($H54>=50,IF($H55+$H54>=50,4,0),IF($H54<>\"\",0,\"\")))))))))","v":""},{"$f":"IF(G53=\"Messung\",8,0)","v":0}]
[null,null,null,null,null,null,"Ctr,50-3150 in dB"]
[]
[null,"Trittschall"]
[null,null,"Decken:",null,null,null,"nicht vorhanden",null,null,null,null,null,null,null,null,"i"]
[null,null,null,null,null,null,"fr,Estrich"]
[null,null,null,null,null,null,"Bodenbelag"]
[null,null,null,null,null,null,"L'n,w in dB",null,null,null,null,null,null,null,null,null,null,null,null,{"$f":"IF($H61=\"\",\"\",IF($H61=\"-\",\"A*\",IF($H61<=30,50,IF($H61<=35,40,IF($H61<=40,30,IF($H61<=45,20,IF($H61<=50,10,IF($H61<=60,5,0))))))))","v":""},{"$f":"IF($H61=\"\",\"\",IF(H59 =  \"< 50 Hz\", 8, 0))","v":""},{"$f":"IF($H$62=\"\",0,IF($H61<=30,IF($H62+$H61<=30,8,0),IF($H61<=35,IF($H62+$H61<=35,8,0),IF($H61<=40,IF($H62+$H61<=40,8,0),IF($H61<=45,IF($H62+$H61<=45,8,0),IF($H61<=50,IF($H62+$H61<=50,8,0),IF($H61<=60,IF($H62+$H61<=60,8,0),IF($H61<>\"\",0,\"\"))))))))","v":0},{"$f":"MAX(U61,V61)","v":0},{"$f":"IF($G$58=\"Messung\",8,0)","v":0}]
[null,null,null,null,null,null,"CI,50-2500 in dB"]
[]
[null,null,"Treppen, Podeste, Laubengänge, Hausflure:",null,null,null,"nicht vorhanden",null,null,null,null,null,null,null,null,"i"]
[null,null,null,null,null,null,"Bauteil","Treppe","Podest","Hausflur","Laubengang",null,null,null,null,null,null,null,{"$f":"IF($W$65=\"\",\"\",IF(U$65=$W$65,$H$67,\"\"))","v":""},"Treppe",{"$f":"IF($H$66=\"\",\"\",IF($H$67<=33,50+IF($G$64=\"Messung\",8,0)+IF(AND($H$68<>\"\",$H$68+$H$67<=33),4,0),IF($H$67<=38,40+IF($G$64=\"Messung\",8,0)+IF(AND($H$68<>\"\",$H$68+$H$67<=38),4,0),IF($H$67<=43,30+IF($G$64=\"Messung\",8,0)+IF(AND($H$68<>\"\",$H$68+$H$67<=43),4,0),IF($H$67<=48,20+IF($G$64=\"Messung\",8,0)+IF(AND($H$68<>\"\",$H$68+$H$67<=48),4,0),IF($H$67<=53,10+IF($G$64=\"Messung\",8,0)+IF(AND($H$68<>\"\",$H$68+$H$67<=53),4,0),IF($H$67<=63,5,0)))))))","v":""},null,{"$f":"IF(AND(U65=\"\",U66=\"\",U67=\"\",U68=\"\"),\"\",MIN(U65:U68))","v":""},{"$f":"IF(AND(U65=\"\",U66=\"\",U67=\"\",U68=\"\"),\"\",VLOOKUP(MAX(S65:S68),$S$65:$T$68,2,FALSE))","v":""},null,{"$f":"IF($H68=\"\",0,IF($H67<=33,IF($H68+$H67<=33,4,0),IF($H67<=38,IF($H68+$H67<=38,4,0),IF($H67<=43,IF($H68+$H67<=43,4,0),IF($H67<=48,IF($H68+$H67<=48,4,0),IF($H67<=53,IF($H68+$H67<=53,4,0),IF($H67<=63,IF($H68+$H67<=63,4,0),IF($H67<>\"\",0,\"\"))))))))","v":0}]
[null,null,null,null,null,null,"Bodenbelag",null,null,null,null,null,null,null,null,null,null,null,{"$f":"IF($W$65=\"\",\"\",IF(U$66=$W$65,$I$67,\"\"))","v":""},"Podest",{"$f":"IF($I$66=\"\",\"\",IF($I$67<=33,50+IF($G$64=\"Messung\",8,0)+IF(AND($I$68<>\"\",$I$68+$I$67<=33),4,0),IF($I$67<=38,40+IF($G$64=\"Messung\",8,0)+IF(AND($I$68<>\"\",$I$68+$I$67<=38),4,0),IF($I$67<=43,30+IF($G$64=\"Messung\",8,0)+IF(AND($I$68<>\"\",$I$68+$I$67<=43),4,0),IF($I$67<=48,20+IF($G$64=\"Messung\",8,0)+IF(AND($I$68<>\"\",$I$68+$I$67<=48),4,0),IF($I$67<=53,10+IF($G$64=\"Messung\",8,0)+IF(AND($I$68<>\"\",$I$68+$I$67<=53),4,0),IF($I$67<=63,5,0)))))))","v":""},null,null,null,null,{"$f":"IF($I68=\"\",0,IF($I67<=33,IF($I68+$I67<=33,4,0),IF($I67<=38,IF($I68+$I67<=38,4,0),IF($I67<=43,IF($I68+$I67<=43,4,0),IF($I67<=48,IF($I68+$I67<=48,4,0),IF($I67<=53,IF($I68+$I67<=53,4,0),IF($I67<=63,IF($I68+$I67<=63,4,0),IF($I67<>\"\",0,\"\"))))))))","v":0}]
[null,null,null,null,null,null,"L'n,w in dB",null,null,null,null,null,null,null,null,null,null,null,{"$f":"IF($W$65=\"\",\"\",IF(U$67=$W$65,$J$67,\"\"))","v":""},"Hausflur",{"$f":"IF($J$66=\"\",\"\",IF($J$67<=33,50+IF($G$64=\"Messung\",8,0)+IF(AND($J$68<>\"\",$J$68+$J$67<=33),4,0),IF($J$67<=38,40+IF($G$64=\"Messung\",8,0)+IF(AND($J$68<>\"\",$J$68+$J$67<=38),4,0),IF($J$67<=43,30+IF($G$64=\"Messung\",8,0)+IF(AND($J$68<>\"\",$J$68+$J$67<=43),4,0),IF($J$67<=48,20+IF($G$64=\"Messung\",8,0)+IF(AND($J$68<>\"\",$J$68+$J$67<=48),4,0),IF($J$67<=50,10+IF($G$64=\"Messung\",8,0)+IF(AND($J$68<>\"\",$J$68+$J$67<=50),4,0),IF($J$67<=63,5,0)))))))","v":""},null,null,null,null,{"$f":"IF($J68=\"\",0,IF($J67<=33,IF($J68+$J67<=33,4,0),IF($J67<=38,IF($J68+$J67<=38,4,0),IF($J67<=43,IF($J68+$J67<=43,4,0),IF($J67<=48,IF($J68+$J67<=48,4,0),IF($J67<=53,IF($J68+$J67<=53,4,0),IF($J67<=63,IF($J68+$J67<=63,4,0),IF($J67<>\"\",0,\"\"))))))))","v":0}]
[null,null,null,null,null,null,"CI,50-2500 in dB",null,null,null,null,null,null,null,null,null,null,null,{"$f":"IF($W$65=\"\",\"\",IF(U$68=$W$65,$K$67,\"\"))","v":""},"Laubengang",{"$f":"IF($K$66=\"\",\"\",IF($K$67<=33,50+IF($G$64=\"Messung\",8,0)+IF(AND($K$68<>\"\",$K$68+$K$67<=33),4,0),IF($K$67<=38,40+IF($G$64=\"Messung\",8,0)+IF(AND($K$68<>\"\",$K$68+$K$67<=38),4,0),IF($K$67<=43,30+IF($G$64=\"Messung\",8,0)+IF(AND($K$68<>\"\",$K$68+$K$67<=43),4,0),IF($K$67<=48,20+IF($G$64=\"Messung\",8,0)+IF(AND($K$68<>\"\",$K$68+$K$67<=48),4,0),IF($K$67<=53,10+IF($G$64=\"Messung\",8,0)+IF(AND($K$68<>\"\",$K$68+$K$67<=53),4,0),IF($K$67<=63,5,0)))))))","v":""},null,null,null,null,{"$f":"IF($K67=\"\",0,IF($K67<=33,IF($K68+$K67<=33,4,0),IF($K67<=38,IF($K68+$K67<=38,4,0),IF($K67<=43,IF($K68+$K67<=43,4,0),IF($K67<=48,IF($K68+$K67<=48,4,0),IF($K67<=53,IF($K68+$K67<=53,4,0),IF($K67<=63,IF($K68+$K67<=63,4,0),IF($K67<>\"\",0,\"\"))))))))","v":0}]
[]
[null,null,"Balkone, Loggien, Terrassen:",null,null,null,"nicht vorhanden",null,null,null,null,null,null,null,null,"i"]
[null,null,null,null,null,null,"Bauteil","Balkon","Loggia","Terrasse",null,null,null,null,null,null,null,null,null,null,null,null,null,null,null,{"$f":"IF($H74=\"\",0,IF($H73<=33,IF($H74+$H73<=33,4,0),IF($H73<=38,IF($H74+$H73<=38,4,0),IF($H73<=43,IF($H74+$H73<=43,4,0),IF($H73<=48,IF($H74+$H73<=48,4,0),IF($H73<=58,IF($H74+$H73<=58,4,0),IF($H73<=63,IF($H74+$H73<=63,4,0),IF($H73<>\"\",0,\"\"))))))))","v":0}]
[null,null,null,null,null,null,"Bodenbelag",null,null,null,null,null,null,null,null,null,null,null,{"$f":"IF($U72=$W$72,$H$73,\"\")","v":0},"Balkon",{"$f":"IF($H$72=\"\",\"\",IF($H$73<=33,25+IF($G$70=\"Messung\",4,0)+IF(AND($H$74<>\"\",$H$74+$H$73<=33),4,0),IF($H$73<=38,20+IF($G$70=\"Messung\",4,0)+IF(AND($H$74<>\"\",$H$74+$H$73<=38),4,0),IF($H$73<=43,15+IF($G$70=\"Messung\",4,0)+IF(AND($H$74<>\"\",$H$74+$H$73<=43),4,0),IF($H$73<=48,10+IF($G$70=\"Messung\",4,0)+IF(AND($H$74<>\"\",$H$74+$H$73<=48),4,0),IF($H$73<=58,5+IF($G$70=\"Messung\",4,0)+IF(AND($H$74<>\"\",$H$74+$H$73<=58),4,0),IF($H$73<=63,0,0)))))))","v":""},null,{"$f":"IF(AND($U72=\"\",$U73=\"\",$U74=\"\"),\"\",MIN(U72:U74))","v":""},{"$f":"IF(AND($U72=\"\",$U73=\"\",$U74=\"\"),\"\",VLOOKUP(MAX(S72:S74),$S$72:$T$74,2,FALSE))","v":""},null,{"$f":"IF($I74=\"\",0,IF($I73<=33,IF($I74+$I73<=33,4,0),IF($I73<=38,IF($I74+$I73<=38,4,0),IF($I73<=43,IF($I74+$I73<=43,4,0),IF($I73<=48,IF($I74+$I73<=48,4,0),IF($I73<=53,IF($I74+$I73<=53,4,0),IF($I73<=63,IF($I74+$I73<=63,4,0),IF($I73<>\"\",0,\"\"))))))))","v":0}]
[null,null,null,null,null,null,"L'n,w in dB",null,null,null,null,null,null,null,null,null,null,null,{"$f":"IF(U$73=$W$72,$I$73,\"\")","v":0},"Loggia",{"$f":"IF($I$72=\"\",\"\",IF($I$73<=33,25+IF($G$70=\"Messung\",4,0)+IF(AND($I$74<>\"\",$I$74+$I$73<=33),4,0),IF($I$73<=38,20+IF($G$70=\"Messung\",4,0)+IF(AND($I$74<>\"\",$I$74+$I$73<=38),4,0),IF($I$73<=43,15+IF($G$70=\"Messung\",4,0)+IF(AND($I$74<>\"\",$I$74+$I$73<=43),4,0),IF($I$73<=48,10+IF($G$70=\"Messung\",4,0)+IF(AND($I$74<>\"\",$I$74+$I$73<=48),4,0),IF($I$73<=50,5+IF($G$70=\"Messung\",4,0)+IF(AND($I$74<>\"\",$I$74+$I$73<=50),4,0),IF($I$73<=63,0,0)))))))","v":""},null,null,null,null,{"$f":"IF($J74=\"\",0,IF($J73<=33,IF($J74+$J73<=33,4,0),IF($J73<=38,IF($J74+$J73<=38,4,0),IF($J73<=43,IF($J74+$J73<=43,4,0),IF($J73<=48,IF($J74+$J73<=48,4,0),IF($J73<=53,IF($J74+$J73<=53,4,0),IF($J73<=63,IF($J74+$J73<=63,4,0),IF($J73<>\"\",0,\"\"))))))))","v":0}]
[null,null,null,null,null,null,"CI,50-2500 in dB",null,null,null,null,null,null,null,null,null,null,null,{"$f":"IF($U74=$W$72,$J$73,\"\")","v":0},"Terrasse",{"$f":"IF($J$72=\"\",\"\",IF($J$73<=33,25+IF($G$70=\"Messung\",4,0)+IF(AND($J$74<>\"\",$J$74<=0),4,0),IF($J$73<=38,20+IF($G$70=\"Messung\",4,0)+IF(AND($J$74<>\"\",$J$74<=0),4,0),IF($J$73<=43,15+IF($G$70=\"Messung\",4,0)+IF(AND($J$74<>\"\",$J$74<=0),4,0),IF($J$73<=48,10+IF($G$70=\"Messung\",4,0)+IF(AND($J$74<>\"\",$J$74<=0),4,0),IF($J$73<=50,5+IF($G$70=\"Messung\",4,0)+IF(AND($J$74<>\"\",$J$74<=0),4,0),IF($J$73<=63,0,0)))))))","v":""}]
[]
[null,"Luftschall Wohungseingangstüren",null,null,null,null,null,null,null,null,null,null,null,null,null,"i"]
[null,null,null,null,null,null,"nicht vorhanden"]
[]
[null,null,null,null,null,null,"Rw in dB"]
[null,"Luftschall Außenbauteile",null,null,null,null,null,null,null,null,null,null,null,null,null,"i"]
[]
[null,"Wasserinstallation / Gebäudetechn. Anlagen",null,null,null,null,null,null,null,null,null,null,null,null,null,"i"]
[]
[null,null,null,null,null,null,"LAFmax in dB(A)"]
[null,null,null,null,null,null,"LC - LA < 20 dB"]
[null,"Nutzergeräusche und Körperschallentkopplung"]
[null,null,null,null,null,null,null,null,null,null,null,null,null,null,null,"i"]
[]
[null,null,null,null,null,null,"LAF,max in dB(A)","≤ 20"]
[null,null,null,null,null,null,"L'Kn,w in dB"]
[null,"fremde Nutzer direkt angrenzend:",null,null,null,null,null,null,null,null,null,null,null,null,null,"i"]
[null,null,"Nachbarwohneinheiten"]
[null,"Anordnung der lauten Räume schalltechnisch:",null,null,null,null,null,null,null,null,null,null,null,null,null,"i"]
[null,null,"z. B. Bäder, Treppenhaus, Aufzug"]
[null,"laute Räume gem. DIN 4109-1:2018-01 angrenzend",null,null,null,null,null,null,null,null,null,null,null,null,null,"i"]
[null,null,"z. B. Gaststätten, Betriebe"]
[null,"Nachhallzeit Treppenhaus",null,null,null,null,null,null,null,null,null,null,null,null,null,"i"]
[null,null,"Treppenhaus"]
[null,"eigener Wohnbereich",null,null,null,null,null,null,null,null,null,null,null,null,null,"i"]
[]
[]
[]
[null,null,null,null,null,null,null,"Copyright © 2021 Kurz und Fischer GmbH",null,null,null,null,null,null,null,null,"Version 02",null,null,"by Kurz und Fischer GmbH"]
[null,null,null,null,null,null,null,"Brückenstraße 9, 71364 Winnenden",null,null,null,null,null,null,null,null,null,null,null,"SSA V0.1"]
[null,null,null,null,null,null,null,"www.kurz-fischer.de"]

{"sheet":"Deckblatt","index":1,"n_rows":48,"n_cols":6,"rows_kept":48,"cut":false,"hidden":true,"merged":[[1,1,1,4],[3,3,3,5],[13,3,13,5],[27,3,27,4],[21,3,21,4],[22,3,22,4],[23,3,23,4],[24,3,24,4],[25,3,25,4],[26,3,26,4]]}
[]
[null,"Schallschutzausweis"]
[]
[]
[]
[null,"Gebäudetyp",null,null,{"$f":"Eingabeblatt!$F$24","v":0}]
[null,"Baujahr des Gebäudes",null,null,{"$f":"Eingabeblatt!$F$25","v":0}]
[null,"Anzahl der Wohneinheiten",null,null,{"$f":"Eingabeblatt!$F$26","v":0}]
[null,"Bezeichnung der Wohneinheit",null,null,{"$f":"Eingabeblatt!$F$31","v":0}]
[null,"Geschoss",null,null,{"$f":"IF(OR(Eingabeblatt!$F$32=\"Obergeschoss\",Eingabeblatt!$F$32=\"Untergeschoss\"),Eingabeblatt!$H$32 & \". \" & Eingabeblatt!$F$32 & \" \" & Eingabeblatt!$I$32,IF(Eingabeblatt!$F$32=\"Sonstiges\",Eingabeblatt!$I$32,IF(OR(Eingabeblatt!$F$32=\"Erdgeschoss\",Eingabeblatt!$F$32=\"Dachgeschoss\"),Eingabeblatt!$F$32 & \" \" & Eingabeblatt!$I$32,\"\")))","v":""}]
[null,"Anzahl der Räume",null,null,{"$f":"Eingabeblatt!$F$33","v":0}]
[null,"Wohnfläche [m²]",null,null,{"$f":"Eingabeblatt!$F$34","v":0}]
[]
[]
[]
[null,"Klasse",null,"Beschreibung","Bemerkung"]
[]
[]
[]
[null,null,null,"Standort und Außenlärmsituation"]
[]
[null,"A*",null,"sehr leises Wohngebiet"]
[null,"A",null,"ruhiges Wohngebiet"]
[null,"B",null,"Wohngebiet ohne besondere Anforderungen an den Schallschutz der Außenbauteile"]
[null,"C",null,"Misch- bzw. Kerngebiet mit mäßiger Außenlärmbelastung und Anforderungen an den Schallschutz der Außenbauteile"]
[null,"D",null,"Misch- bzw. Kerngebiet mit hohen Anforderungen an den Schallschutz der Außenbauteile"]
[null,"E",null,"Gewerbegebiet oder hohe Außenlärmbelastung und sehr hohe Anforderungen an den Schallschutz der Außenbauteile"]
[null,"F",null,"Industriegebiet oder sehr hohe Außenlärmbelastung und sehr hohen Anforderungen an den Schallschutz der Außenbauteile"]
[]
[null,null,null,"Baulicher Schallschutz"]
[null,null,null,"Beschreibung","Bemerkung"]
[null,"A*",null,"Wohneinheit mit sehr gutem Schallschutz, die ein ungestörtes Wohnen nahezu ohne Rücksichtnahme gegenüber den Nachbarn ermöglicht. ","Entspricht einem erhöhten Schallschutz in Doppel- und Reihenhäusern"]
[null,"A",null,"Wohneinheit mit sehr gutem Schallschutz, die ein ungestörtes Wohnen ohne große Rücksichtnahme gegenüber den Nachbarn ermöglicht. ","Entspricht einem erhöhten Schallschutz in Doppel- und Reihenhäusern"]
[null,"B",null,"Wohneinheit mit gutem Schallschutz, die bei gegenseitiger Rücksichtnahme zwischen den Nachbarn ein ruhiges Wohnen bei weitgehendem Schutz der Privatsphäre ermöglicht.","Entspricht einem hohen Schallschutz in Mehrfamilienhäusern und einem normalen Schallschutz in Doppel- und Reihenhäusern"]
[null,"C",null,"Wohneinheit mit gegenüber der Klasse D wahrnehmbar besserem Schallschutz, in der die Bewohner bei üblichem rücksichtsvollen Wohnverhalten im allgemeinen Ruhe finden und die Vertraulichkeit gewahrt bleibt.","Entspricht einem erhöhten Schallschutz in Mehrfamilienhäusern"]
[null,"D",null,"Wohneinheit mit einem Schallschutz, der die Anforderungen der DIN 4109-1:2018-01 für Geschosshäuser mit Wohnungen und Arbeitsräumen im Wesentlichen erfüllt (Ausnahmen: siehe II.3) und damit die Bewohner in Aufenthaltsräumen im Sinne des Gesundheitsschutzes vor unzumutbaren Belästigungen durch Schallübertragung aus fremden Wohneinheiten und von außen schützt. Es kann nicht erwartet werden, dass Geräusche aus fremden Wohneinheiten oder von außen nicht mehr wahrgenommen werden. Dies erfordert gegenseitige Rücksichtnahme durch Vermeidung unnötigen Lärms. Die Anforderungen setzen voraus, dass in benachbarten Räumen keine ungewöhnlich starken Geräusche verursacht werden.","Entspricht einem normalen Schallschutz in Mehrfamilienhäusern"]
[null,"E",null,"Wohneinheit mit einem Schallschutz, der die Anforderungen der DIN 4109-1:2018-01 nicht erfüllt. Belästigungen durch Schallübertragung aus fremden Wohneinheiten und von außen sind möglich; besondere Rücksichtnahme ist unbedingt erforderlich. Die Vertraulichkeit ist nicht mehr gegeben."]
[null,"F",null,"Wohneinheit mit einem schlechten Schallschutz, der deutlich unter den Anforderungen der DIN 4109-1:2018-01 liegt. Mit Belästigungen durch Schallübertragung aus fremden Wohneinheiten und von außen muss auch bei bewusster Rücksichtnahme gerechnet werden; Vertraulichkeit kann nicht erwartet werden."]
[null,"Klasse EW3:",null,"Schallschutz im eigenen Wohnbereich, bei welchem Vertraulichkeit gewährleistet werden kann und Störungen vermieden werden."]
[null,"Klasse EW2:",null,"Schallschutz im eigenen Wohnbereich, bei welchem ein Mindestmaß an Vertraulichkeit gewährleistet werden kann und erhebliche Störungen vermieden werden."]
[null,"Klasse EW1:",null,"Schallschutz im eigenen Wohnbereich, bei welchem Vertraulichkeit nicht erwartet werden kann."]
[]
[]
[]
[]
[]
[null,null,null,"Copyright © 2018 Deutsche Gesellschaft für Akustik e.V. (DEGA)",null,"Version 02"]
[null,null,null,"Voltastraße 5, 13355 Berlin, www.dega-akustik.de "]

{"sheet":"Daten","index":2,"n_rows":149,"n_cols":3,"rows_kept":149,"cut":false,"hidden":true,"merged":[]}
[]
["reines Wohngebiet","A*"]
["allgemeines Wohngebiet","A"]
["Mischgebiet / besonderes Wohngebiet","C"]
["Gewerbegebiet","E"]
["Industriegebiet","F"]
[]
[]
["bis 55","A*"]
["56 - 60","B"]
["61 - 65","C"]
["66 - 70","D"]
["71 - 75","E"]
["≥ 76","F"]
[]
[]
["ja"]
["nein"]
[]
[]
["Prognose"]
["Messung"]
["nicht vorhanden"]
[]
[]
["< 50 Hz"]
["≥ 50 Hz"]
[]
[]
["angerechnet"]
["ohne"]
[]
[]
["≤ 20","A*",30]
["20 < L ≤ 24","B",20]
["24 < L ≤ 27","C",10]
["27 < L ≤ 30","D",5]
["30 < L ≤ 35","E",0]
["> 35","F",0]
[]
[]
["ohne Nachweis","F"]
["Anforderung nach DIN 4109 erfüllt","A"]
["Anforderung nach DIN 4109 Rw,ges + Ctr,50-3150 erfüllt","A*"]
[]
[]
["≤ 20","A*"]
["20 < L ≤ 25","A"]
["25 < L ≤ 30","B"]
["30 < L ≤ 35","C"]
["35 < L ≤ 40","D"]
["40 < L ≤ 45","E"]
["> 45","F"]
[]
[]
["≤ 38","A*"]
["38 < L ≤ 43","A"]
["43 < L ≤ 48","B"]
["48 < L ≤ 53","C"]
["53 < L ≤ 58","D"]
["58 < L ≤ 63","E"]
["> 63","F"]
[]
[]
["0 - 1","A*",20]
[2,"A*",15]
[3,"A",10]
[4,"B",5]
["≥ 5","C",0]
[]
[]
["A/V ≥ 0,20 oder kein gemeinsames Treppenhaus","A*",8]
["A/V ≥ 0,10","B",5]
["keine Maßnahmen","-",0]
[]
[]
["keine Empfehlung vereinbart","A",0]
["Klasse EW1 erfüllt","A",5]
["Klasse EW2 erfüllt","A*",10]
["Klasse EW3 erfüllt","A*",15]
[]
[]
["günstig"]
["ungünstig"]
[]
[]
["keine lauten angrenzenden Gewerberäume"]
["Lr  t / n:      25 / 15 dB (A)    und     Lmax  t / n:    35 / 25 dB (A)"]
["Lr  t / n:      30 / 20 dB (A)    und     Lmax  t / n:    40 / 30 dB (A)"]
["Lr  t / n:      35 / 25 dB (A)    und     Lmax  t / n:    45 / 35 dB (A)"]
[]
[]
["Prüfzeugnis (Rechenwert)"]
["Messung am Bau"]
[]
[]
["ohne Nachweis"]
["Nutzergeräusche"]
["Körperschallentkopplung"]
[]
[]
["Einfamilienhaus"]
["Doppelhaus"]
["Reihenhaus"]
["Mehrfamilienhaus"]
["Wohn- und Geschäftshaus"]
[]
[]
["Untergeschoss"]
["Erdgeschoss"]
["Obergeschoss"]
["Dachgeschoss"]
["Sonstiges"]
[]
[]
["in Flur oder Dielen"]
["in Aufenthaltsräumen"]
["nicht vorhanden"]
[]
[]
["erfüllt"]
["nicht erfüllt"]
[]
[]
["ohne Nachweis"]
["Prognose"]
["Messung"]
[]
[]
["Prognose"]
["Messung"]
[]
[]
["A*","Sehr leises Wohngebiet."]
["A","Ruhiges Wohngebiet."]
["B","Wohngebiet ohne besondere Anforderungen an den Schallschutz der Außenbauteile."]
["C","Misch- bzw. Kerngebiet mit mäßiger Außenlärmbelastung und Anforderung an den Schallschutz der Außenbauteile."]
["D","Misch- bzw. Kerngebiet mit hohen Anforderung an den Schallschutz der Außenbauteile."]
["E","Gewerbegebiet oder hohe Außenlärmbelastung und sehr hohe Anforderungen an den Schallschutz der Außenbauteile."]
["F","Industriegebiet oder sehr hohe Außenlärmbelastung und sehr hohen Anforderungen an den Schallschutz der Außenbauteile."]
[]
[]
["A*","Wohneinheit mit sehr gutem Schallschutz, die ein ungestörtes Wohnen nahezu ohne Rücksichtnahme gegenüber den Nachbarn ermöglicht.","- Hoher Schallschutz in Doppel- und Reihenhäusern -"]
["A","Wohneinheit mit sehr gutem Schallschutz, die ein ungestörtes Wohnen ohne große Rücksichtnahme gegenüber den Nachbarn ermöglicht.","- Erhöhter Schallschutz in Doppel- und Reihenhäusern -"]
["B","Wohneinheit mit gutem Schallschutz, die bei gegenseitiger Rücksichtnahme zwischen den Nachbarn ein ruhiges Wohnen bei weitgehendem Schutz der Privatsphäre ermöglicht.","- Hoher Schallschutz in Mehrfamilienhäusern, normaler Schallschutz in Doppel- und Reihenhäusern -"]
["C","Wohneinheit mit gutem Schallschutz, in der die Bewohner bei üblichem rücksichtsvollen Wohnverhalten im allgemeinen Ruhe finden und die Vertraulichkeit gewahrt bleibt.","- Erhöhter Schallschutz in Mehrfamilienhäusern -"]
["D","Wohneinheit mit einem Schallschutz, der die Anforderungen der DIN 4109-1:2018-01 für Geschosshäuser mit Wohnungen und Arbeitsräumen im Wesentlichen erfüllt (Ausnahmen: siehe II.3) und damit die Bewohner in Aufenthaltsräumen im Sinne des Gesundheitsschutzes vor unzumutbaren Belästigungen durch Schallübertragung aus fremden Wohneinheiten und von außen schützt. Es kann nicht erwartet werden, dass Geräusche aus fremden Wohneinheiten oder von außen nicht mehr wahrgenommen werden. Dies erfordert gegenseitige Rücksichtnahme durch Vermeidung unnötigen Lärms. Die Anforderungen setzen voraus, dass in benachbarten Räumen keine ungewöhnlich starken Geräusche verursacht werden.","- Normaler Schallschutz in Mehrfamilienhäusern -"]
["E","Wohneinheit mit einem Schallschutz, der die Anforderungen der DIN 4109-1:2018-01 nicht erfüllt. Belästigungen durch Schallübertragung aus fremden Wohneinheiten und von außen sind möglich; besondere Rücksichtnahme ist unbedingt erforderlich. Die Vertraulichkeit ist nicht mehr gegeben."]
["F","Wohneinheit mit einem schlechten Schallschutz, der deutlich unter den Anforderungen der DIN 4109-1:2018-01 liegt. Mit Belästigungen durch Schallübertragung aus fremden Wohneinheiten und von außen muss auch bei bewusster Rücksichtnahme gerechnet werden; Vertraulichkeit kann nicht erwartet werden."]

{"sheet":"Schallschutzausweis ausführlich","index":3,"n_rows":71,"n_cols":38,"rows_kept":71,"cut":false,"hidden":true,"merged":[[45,1,51,1],[5,20,6,22],[14,17,14,18],[5,4,5,8],[6,4,6,8],[7,4,7,8],[5,12,5,18],[6,12,6,18],[14,3,14,11],[7,20,7,22],[8,20,8,22],[7,12,7,18],[8,4,8,8],[8,12,8,18],[16,15,17,15],[16,17,21,18],[19,20,19,22],[29,20,29,22],[26,20,26,22],[27,20,27,22],[20,20,20,22],[23,20,23,22],[21,13,21,15],[35,20,35,22],[36,20,36,22],[32,20,32,22],[33,20,33,22],[31,20,31,22],[34,20,34,22],[39,33,40,33],[41,33,42,33],[37,20,37,22],[38,20,38,22],[39,20,39,22],[40,20,40,22],[64,20,65,22],[66,20,66,22],[59,20,59,22],[63,20,63,22],[60,20,62,22],[57,3,57,22],[60,3,60,8],[61,3,61,8],[62,3,64,8],[64,17,66,18],[63,17,63,18],[59,13,59,15],[59,10,59,11],[60,13,62,15],[64,13,66,15],[63,10,63,11],[60,10,62,11],[64,10,66,11],[60,17,62,18],[59,17,59,18],[59,3,59,8],[63,13,63,14],[54,20,54,22],[51,33,53,33],[54,33,55,33],[45,5,45,8],[46,26,51,26],[55,13,55,15],[55,3,55,11],[55,20,55,22],[50,20,51,22],[45,9,45,11],[53,20,53,22],[45,20,45,22],[46,20,47,22],[48,20,49,22],[50,15,51,15],[50,13,51,13],[52,3,52,4],[52,20,52,22],[49,5,49,8],[50,9,51,11],[54,3,54,4],[50,5,50,8],[51,5,51,8],[53,9,53,10],[43,33,44,33],[45,33,46,33],[42,20,42,22],[44,20,44,22],[41,20,41,22],[43,20,43,22],[43,9,43,11],[46,15,47,15],[41,9,41,11],[42,9,42,11],[44,9,44,11],[26,3,26,4],[23,17,55,18],[32,3,32,4],[46,5,46,8],[40,8,40,11],[38,9,38,11],[29,9,29,10],[30,9,30,10],[31,9,31,10],[33,9,33,11],[39,9,39,11],[47,5,47,8],[48,5,48,8],[44,6,44,7],[43,5,43,8],[48,9,49,11],[46,9,47,11],[48,15,49,15],[48,13,49,13],[33,7,33,8],[25,9,25,10],[46,13,47,13],[45,3,51,4],[44,3,44,4],[28,20,28,22],[19,9,19,11],[20,9,20,11],[20,5,20,8],[19,5,19,8],[21,20,21,22],[34,7,34,8],[32,7,32,8],[25,7,25,8],[27,7,27,8],[26,7,26,8],[26,9,26,10],[27,9,27,10],[28,9,28,10],[1,1,1,22],[10,3,10,22],[3,3,3,22],[20,3,20,4],[14,20,14,22],[21,3,21,11],[43,3,43,4],[39,3,39,4],[36,7,36,8],[37,7,37,8],[35,7,35,11],[37,3,37,4],[37,9,37,11],[38,7,38,8],[39,7,39,8],[18,3,18,4],[18,5,18,11],[16,20,16,22],[18,20,18,22],[27,3,27,4],[42,3,42,4],[41,3,41,4],[30,20,30,22],[25,20,25,22],[54,9,54,10],[36,9,36,11],[34,9,34,11],[32,9,32,11],[29,3,29,4],[31,3,31,4],[30,3,30,4],[33,3,33,4],[34,3,34,4],[52,5,52,11],[35,5,36,6],[37,5,37,6],[53,5,53,6],[54,5,54,6]]}
[]
[null,"Detaillierter Schallschutzausweis"]
[]
[]
[]
[null,"Antragsteller:",null,null,{"$f":"Eingabeblatt!$F$13","v":0},null,null,null,null,null,"Gebäude:",null,{"$f":"Eingabeblatt!$F$20","v":0},null,null,null,null,null,null,null,"Bezeichnung der Wohneinheit"]
[null,null,null,null,{"$f":"Eingabeblatt!$F$14","v":0},null,null,null,null,null,null,null,{"$f":"Eingabeblatt!$F$21","v":0}]
[null,null,null,null,{"$f":"Eingabeblatt!$F$15","v":0},null,null,null,null,null,null,null,{"$f":"Eingabeblatt!$F$22","v":0},null,null,null,null,null,null,null,{"$f":"Eingabeblatt!$F$31","v":0}]
[null,null,null,null,{"$f":"Eingabeblatt!$F$16 & \" \" & Eingabeblatt!$H$16","v":" "},null,null,null,null,null,null,null,{"$f":"Eingabeblatt!$F$23 & \" \" & Eingabeblatt!$H$23","v":" "}]
[]
[]
[]
[]
[]
[null,"Nr.",null,"Kriterien",null,null,null,null,null,null,null,null,null,"Punkte",null,"Skala",null,"Beurteilung",null,null,"Bemerkungen"]
[]
[null,null,null,"Standort und Außenlärmsituation",null,null,null,null,null,null,null,null,null,null,null,null,null,{"$f":"IF(OR(P19=\"\",P21=\"\"),\"\",IF(N22<10,\"F\",IF(N22<20,\"E\",IF(N22<25,IF(OR(P19=\"F\",P21=\"F\"),\"E\",\"D\"),IF(N22<40,IF(OR(P19=\"F\",P21=\"F\"),\"E\",IF(OR(P19=\"E\",P21=\"E\"),\"D\",\"C\")),IF(N22<45,IF(OR(P19=\"F\",P21=\"F\"),\"E\",IF(OR(P19=\"E\",P21=\"E\"),\"D\",IF(OR(P19=\"D\",P21=\"D\"),\"C\",\"B\"))),IF(N22<55,IF(OR(P19=\"F\",P21=\"F\"),\"E\",IF(OR(P19=\"E\",P21=\"E\"),\"D\",IF(OR(P19=\"D\",P21=\"D\"),\"C\",IF(OR(P19=\"C\",P21=\"C\"),\"B\",\"A\")))),IF(OR(P19=\"F\",P21=\"F\"),\"E\",IF(OR(P19=\"E\",P21=\"E\"),\"D\",IF(OR(P19=\"D\",P21=\"D\"),\"C\",IF(OR(P19=\"C\",P21=\"C\"),\"B\",IF(OR(P19=\"B\",P21=\"B\"),\"A\",\"A*\"))))))))))))","v":""}]
[]
[null,"1 - 5",null,"Gebietscharakter:",null,{"$f":"IF(Eingabeblatt!G41=\"\",\"\",Eingabeblatt!G41)","v":""},null,null,null,null,null,null,null,{"$f":"IF(F19=\"allgemeines Wohngebiet\",20,IF(F19=\"reines Wohngebiet\",30,(IF(F19=\"Mischgebiet / besonderes Wohngebiet\",10,IF(F19=\"Gewerbegebiet\",5,0)))))","v":0},null,{"$f":"IF($F19=\"\",\"\",VLOOKUP($F19,Daten!$A$2:$B$7,2,FALSE))","v":""}]
[null,null,null,null,null,"maßgeblicher\nAußenlärmpegel in dB(A)",null,null,null,"Freibereich\nabgewandt"]
[null,"6 - 17",null,"Außenlärmsituation:",null,{"$f":"IF(Eingabeblatt!G43=\"\",\"\",Eingabeblatt!G43)","v":""},null,null,null,{"$f":"IF(Eingabeblatt!G45=\"\",\"\",Eingabeblatt!G45)","v":""},null,null,null,{"$f":"IF(F21=\"bis 55\",IF(J21=\"ja\",27,IF(J21=\"nein\",25,0)),IF(F21=\"56 - 60\",IF(J21=\"ja\",22,IF(J21=\"nein\",20,0)),IF(F21=\"61 - 65\",IF(J21=\"ja\",17,IF(J21=\"nein\",15,0)),IF(F21=\"66 - 70\",IF(J21=\"ja\",12,IF(J21=\"nein\",10,0)),IF(F21=\"71 - 75\",IF(J21=\"ja\",7,IF(J21=\"nein\",5,0)),IF(F21=\"≥ 76\",IF(J21=\"ja\",2,0),0))))))","v":0},null,{"$f":"IF($F21=\"\",\"\",VLOOKUP($F21,Daten!$A$9:$B$14,2,FALSE))","v":""}]
[null,null,null,"Gesamtpunkte II:",null,null,null,null,null,null,null,null,null,{"$f":"N19+N21","v":0}]
[]
[null,null,null,"Baulicher Schallschutz",null,null,null,null,null,null,null,null,null,null,null,null,null,{"$f":"IF(OR($P$27=\"\",$P$28=\"\",$P$30=\"\",$P$31=\"\",$P$32=\"\",AND($P$34=\"\",$P$35=\"\"),$P$38=\"\",$P$40=\"\",$P$42=\"\",$P$43=\"\",$P$44=\"\",AND($P$46=\"\",$P$47=\"\",$P$49=\"\",$P$51=\"\")),\"\",IF($N$56<30,\"F\",IF(OR($P$27=\"F\",$P$28=\"F\",$P$30=\"F\",$P$31=\"F\",$P$32=\"F\",$P$34=\"F\",$P$35=\"F\",$P$38=\"F\",$P$40=\"F\",$P$42=\"F\",$P$43=\"F\",$P$44=\"F\",$P$46=\"F\",$P$47=\"F\",$P$49=\"F\",$P$51=\"F\"),\"E\",IF($N$56<80,\"E\",IF(OR($P$27=\"E\",$P$28=\"E\",$P$30=\"E\",$P$31=\"E\",$P$32=\"E\",$P$34=\"E\",$P$35=\"E\",$P$38=\"E\",$P$40=\"E\",$P$42=\"E\",$P$43=\"E\",$P$44=\"E\",$P$46=\"E\",$P$47=\"E\",$P$49=\"E\",$P$51=\"E\"),\"D\",IF($N$56<145,\"D\",IF(OR($P$27=\"D\",$P$28=\"D\",$P$30=\"D\",$P$31=\"D\",$P$32=\"D\",$P$34=\"D\",$P$35=\"D\",$P$38=\"D\",$P$40=\"D\",$P$42=\"D\",$P$43=\"D\",$P$44=\"D\",$P$46=\"D\",$P$47=\"D\",$P$49=\"D\",$P$51=\"D\"),\"C\",IF($N$56<210,\"C\",IF(OR($P$27=\"C\",$P$28=\"C\",$P$30=\"C\",$P$31=\"C\",$P$32=\"C\",$P$34=\"C\",$P$35=\"C\",$P$38=\"C\",$P$40=\"C\",$P$42=\"C\",$P$43=\"C\",$P$44=\"C\",$P$46=\"C\",$P$47=\"C\",$P$49=\"C\",$P$51=\"C\"),\"B\",IF($N$56<270,\"B\",IF(OR($P$27=\"B\",$P$28=\"B\",$P$30=\"B\",$P$31=\"B\",$P$32=\"B\",$P$34=\"B\",$P$35=\"B\",$P$38=\"B\",$P$40=\"B\",$P$42=\"B\",$P$43=\"B\",$P$44=\"B\",$P$46=\"B\",$P$47=\"B\",$P$49=\"B\",$P$51=\"B\"),\"A\",IF($N$56<340,\"A\",\"A*\"))))))))))))","v":""}]
[]
[null,null,null,"Luftschall",null,"Prognose","Messung",null,null,"Ctr,50-3150 in dB",null,"R'w in dB",null,null,null,null,null,null,null,null,null,null,null,null,null,null,null,null,null,null,null,null,null,null,null,"türen"]
[null,"18 - 26",null,"Wände:",null,{"$f":"IF(Eingabeblatt!G49=\"Prognose\",\"X\",IF(Eingabeblatt!G49=\"\",\"\",\"-\"))","v":"-"},{"$f":"IF(Eingabeblatt!G49=\"Messung\",\"X\",IF(Eingabeblatt!G49=\"\",\"\",\"-\"))","v":"-"},null,null,{"$f":"IF(Eingabeblatt!$H$51=\"\",\"\",Eingabeblatt!$H$51)","v":""},null,{"$f":"IF(AND($F27=\"-\",$G27=\"-\"),\"-\",IF(Eingabeblatt!$H$50=\"\",\"\",Eingabeblatt!$H$50))","v":"-"},null,{"$f":"AD27","v":50},null,{"$f":"IF(OR($L27=\"\",$L27=\"-\"),\"A*\",IF($L27>=72,\"A*\",IF($L27>=67,\"A\",IF($L27>=62,\"B\",IF($L27>=56,\"C\",IF($L27>=53,\"D\",IF($L27>=50,\"E\",IF($L27<>\"\",\"F\",\"\"))))))))","v":"A*"},null,null,null,null,{"$f":"IF(AND(F27=\"-\",G27=\"-\"),\"nicht vorhanden\",IF(AND(I27=\"KMV\",OR(P27=\"A*\",P27=\"A\",P27=\"B\")),\"KMV nicht geeignet\",\"\"))","v":"nicht vorhanden"},null,null,null,null,null,null,null,{"$f":"IF($L27=\"\",\"\",IF($L27=\"-\",\"A*\",IF($L27+J27>=72,\"A*\",IF($L27+J27>=67,\"A\",IF($L27+J27>=62,\"B\",IF($L27+J27>=56,\"C\",IF($L27+J27>=53,\"D\",IF($L27+J27>=50,\"E\",IF($L27+J27<>\"\",\"F\",\"\")))))))))","v":"A*"},{"$f":"IF(ISNUMBER(Eingabeblatt!T50+Eingabeblatt!U50+Eingabeblatt!V50),Eingabeblatt!T50+Eingabeblatt!U50+Eingabeblatt!V50,50)","v":50},null,null,null,null,null,"Bonuspunkte:",{"$f":"N55+N45+N44+N43+N42+IF(P40=\"A\",N40-30,IF(P40=\"C\",N40-20,IF(P40=\"D\",N40-10,IF(P40=\"E\",N40-5,0))))+IF(P35=\"A\",N35-30,IF(P35=\"B\",N35-20,IF(P35=\"C\",N35-10,IF(P35=\"D\",N35-5,N35))))+IF(P34=\"A\",N34-30,IF(P34=\"B\",N34-20,IF(P34=\"C\",N34-10,IF(P34=\"D\",N34-5,N34))))+IF(P32=\"A*\",N32-25,IF(P32=\"A\",N32-20,IF(P32=\"B\",N32-15,IF(P32=\"C\",N32-10,IF(P32=\"D\",N32-5,N32)))))+IF(P31=\"A*\",N31-50,IF(P31=\"A\",N31-40,IF(P31=\"B\",N31-30,IF(P31=\"C\",N31-20,IF(P31=\"D\",N31-10,IF(P31=\"E\",N31-5,N31))))))+IF(P30=\"A*\",N30-50,IF(P30=\"A\",N30-40,IF(P30=\"B\",N30-30,IF(P30=\"C\",N30-20,IF(P30=\"D\",N30-10,IF(P30=\"E\",N30-5,N30))))))+IF(P28=\"A*\",N28-50,IF(P28=\"A\",N28-40,IF(P28=\"B\",N28-30,IF(P28=\"C\",N28-20,IF(P28=\"D\",N28-10,IF(P28=\"E\",N28-5,N28))))))+IF(P27=\"A*\",N27-50,IF(P27=\"A\",N27-40,IF(P27=\"B\",N27-30,IF(P27=\"C\",N27-20,IF(P27=\"D\",N27-10,IF(P27=\"E\",N27-5,N27))))))","v":{"$error":"#VALUE!"}}]
[null,"27 - 35",null,"Decken:",null,{"$f":"IF(Eingabeblatt!G53=\"Prognose\",\"X\",IF(Eingabeblatt!G53=\"\",\"\",\"-\"))","v":"-"},{"$f":"IF(Eingabeblatt!G53=\"Messung\",\"X\",IF(Eingabeblatt!G53=\"\",\"\",\"-\"))","v":"-"},null,null,{"$f":"IF(Eingabeblatt!$H$55=\"\",\"\",Eingabeblatt!$H$55)","v":""},null,{"$f":"IF(AND($F28=\"-\",$G28=\"-\"),\"-\",IF(Eingabeblatt!$H$54=\"\",\"\",Eingabeblatt!$H$54))","v":"-"},null,{"$f":"AD28","v":50},null,{"$f":"IF(OR($L28=\"\",$L28=\"-\"),\"A*\",IF($L28>=72,\"A*\",IF($L28>=67,\"A\",IF($L28>=62,\"B\",IF($L28>=57,\"C\",IF($L28>=54,\"D\",IF($L28>=50,\"E\",IF($L28<>\"\",\"F\",\"\"))))))))","v":"A*"},null,null,null,null,{"$f":"IF(AND(F28=\"-\",G28=\"-\"),\"nicht vorhanden\",IF(AND(I28=\"KMV\",OR(P28=\"A*\",P28=\"A\",P28=\"B\")),\"KMV nicht geeignet\",\"\"))","v":"nicht vorhanden"},null,null,null,null,null,null,null,{"$f":"IF($L28=\"\",\"\",IF($L28=\"-\",\"A*\",IF($L28>=72,\"A*\",IF($L28+J28>=67,\"A\",IF($L28+J28>=62,\"B\",IF($L28+J28>=57,\"C\",IF($L28+J28>=54,\"D\",IF($L28+J28>=50,\"E\",IF($L28+J28<>\"\",\"F\",\"\")))))))))","v":"A*"},{"$f":"IF(ISNUMBER(Eingabeblatt!T54+Eingabeblatt!U54++Eingabeblatt!V54),Eingabeblatt!T54+Eingabeblatt!U54++Eingabeblatt!V54,50)","v":50},null,null,null,null,null,"Gesamtkl von allen Krit eingehalten",null,{"$f":"IF(R24=\"F\",\"X\",IF(R24=\"E\",IF(AND(P27<>\"F\",P28<>\"F\",P30<>\"F\",P31<>\"F\",P32<>\"F\",P34<>\"F\",P35<>\"F\",P38<>\"F\",P40<>\"F\",P46<>\"F\",P47<>\"F\",P49<>\"F\",P51<>\"F\"),\"X\",\"\"),IF(R24=\"D\",IF(AND(P27<>\"E\",P28<>\"E\",P30<>\"E\",P31<>\"E\",P32<>\"E\",P34<>\"E\",P35<>\"E\",P38<>\"E\",P40<>\"E\",P46<>\"E\",P47<>\"E\",P49<>\"E\",P51<>\"E\"),\"X\",\"\"),IF(R24=\"C\",IF(AND(P27<>\"D\",P28<>\"D\",P30<>\"D\",P31<>\"D\",P32<>\"D\",P34<>\"D\",P35<>\"D\",P38<>\"D\",P40<>\"D\",P46<>\"D\",P47<>\"D\",P49<>\"D\",P51<>\"D\"),\"X\",\"\"),IF(R24=\"B\",IF(AND(P27<>\"C\",P28<>\"C\",P30<>\"C\",P31<>\"C\",P32<>\"C\",P34<>\"C\",P35<>\"C\",P38<>\"C\",P40<>\"C\",P46<>\"C\",P47<>\"C\",P49<>\"C\",P51<>\"C\"),\"X\",\"\"),IF(R24=\"A\",IF(AND(P27<>\"B\",P28<>\"B\",P30<>\"B\",P31<>\"B\",P32<>\"B\",P34<>\"B\",P35<>\"B\",P38<>\"B\",P40<>\"B\",P46<>\"B\",P47<>\"B\",P49<>\"B\",P51<>\"B\"),\"X\",\"\"),IF(R24=\"\",\"\",\"X\")))))))","v":""}]
[null,null,null,"Trittschall",null,"Prognose","Messung","fr < 50 Hz","Bodenbelag","CI,50-2500 in dB",null,"L'n,w in dB"]
[null,"36 - 44",null,"Decken:",null,{"$f":"IF(Eingabeblatt!$G$58=\"Prognose\",\"X\",IF(Eingabeblatt!$G$58=\"\",\"\",\"-\"))","v":"-"},{"$f":"IF(Eingabeblatt!$G$58=\"Messung\",\"X\",IF(Eingabeblatt!$G$58=\"\",\"\",\"-\"))","v":"-"},{"$f":"IF(Eingabeblatt!$H$59=\"< 50 Hz\",\"X\",IF(Eingabeblatt!$H$59=\"\",\"\",\"-\"))","v":""},{"$f":"IF(Eingabeblatt!$H$60=\"angerechnet\",\"X\",IF(Eingabeblatt!$H$60=\"\",\"\",\"-\"))","v":""},{"$f":"IF(Eingabeblatt!$H$62=\"\",\"\",Eingabeblatt!$H$62)","v":""},null,{"$f":"IF(AND($F30=\"-\",$G30=\"-\"),\"-\",IF(Eingabeblatt!$H$61=\"\",\"\",Eingabeblatt!$H$61))","v":"-"},null,{"$f":"AD30","v":50},null,{"$f":"IF(OR($L30=\"\",$L30=\"-\"),\"A*\",IF($L30=\"-\",\"A*\",IF($L30<=30,\"A*\",IF($L30<=35,\"A\",IF($L30<=40,\"B\",IF($L30<=45,\"C\",IF($L30<=50,\"D\",IF($L30<=60,\"E\",\"F\"))))))))","v":"A*"},null,null,null,null,{"$f":"IF(AND(F30=\"-\",G30=\"-\"),\"nicht vorhanden\",IF(AND(I30=\"KMV\",OR(P30=\"A*\",P30=\"A\",P30=\"B\")),\"KMV nicht geeignet\",\"\"))","v":"nicht vorhanden"},null,null,null,null,null,null,null,{"$f":"IF($L30=\"\",\"\",IF($L30=\"-\",\"A*\",IF($L30+J30<=30,\"A*\",IF($L30+J30<=35,\"A\",IF($L30+J30<=40,\"B\",IF($L30+J30<=45,\"C\",IF($L30+J30<=50,\"D\",IF($L30+J30<=60,\"E\",\"F\"))))))))","v":"A*"},{"$f":"IF(ISNUMBER(Eingabeblatt!T61+Eingabeblatt!W61++Eingabeblatt!X61),Eingabeblatt!T61+Eingabeblatt!W61++Eingabeblatt!X61,50)","v":50}]
[null,"45 - 53",null,"Treppen, Podeste,  Laubengänge, Hausflure:",null,{"$f":"IF(Eingabeblatt!$G$64=\"Prognose\",\"X\",IF(Eingabeblatt!$G$64=\"\",\"\",\"-\"))","v":"-"},{"$f":"IF(Eingabeblatt!$G$64=\"Messung\",\"X\",IF(Eingabeblatt!$G$64=\"\",\"\",\"-\"))","v":"-"},null,{"$f":"IF(Eingabeblatt!$X$65=Eingabeblatt!$H$65,IF(Eingabeblatt!$H$66=\"\",\"\",IF(Eingabeblatt!$H$66=\"angerechnet\",\"X\",\"-\")),IF(Eingabeblatt!$X$65=Eingabeblatt!$I$65,IF(Eingabeblatt!$I$66=\"\",\"\",IF(Eingabeblatt!$I$66=\"angerechnet\",\"X\",\"-\")),IF(Eingabeblatt!$X$65=Eingabeblatt!$J$65,IF(Eingabeblatt!$J$66=\"\",\"\",IF(Eingabeblatt!$J$66=\"angerechnet\",\"X\",\"-\")),IF(Eingabeblatt!$X$65=Eingabeblatt!$K$65,IF(Eingabeblatt!$K$66=\"\",\"\",IF(Eingabeblatt!$K$66=\"angerechnet\",\"X\",\"-\")),\"\"))))","v":""},{"$f":"IF(Eingabeblatt!$X$65=Eingabeblatt!$H$65,IF(Eingabeblatt!$H$68=\"\",\"\",Eingabeblatt!$H$68),IF(Eingabeblatt!$X$65=Eingabeblatt!$I$65,IF(Eingabeblatt!$I$68=\"\",\"\",Eingabeblatt!$I$68),IF(Eingabeblatt!$X$65=Eingabeblatt!$J$65,IF(Eingabeblatt!$J$68=\"\",\"\",Eingabeblatt!$J$68),IF(Eingabeblatt!$X$65=Eingabeblatt!$K$65,IF(Eingabeblatt!$K$68=\"\",\"\",Eingabeblatt!$K$68),\"\"))))","v":""},null,{"$f":"IF(AND($F31=\"-\",$G31=\"-\"),\"-\",IF(Eingabeblatt!$X$65=Eingabeblatt!$H$65,IF(Eingabeblatt!$H$67=\"\",\"\",Eingabeblatt!$H$67),IF(Eingabeblatt!$X$65=Eingabeblatt!$I$65,IF(Eingabeblatt!$I$67=\"\",\"\",Eingabeblatt!$I$67),IF(Eingabeblatt!$X$65=Eingabeblatt!$J$65,IF(Eingabeblatt!$J$67=\"\",\"\",Eingabeblatt!$J$67),IF(Eingabeblatt!$X$65=Eingabeblatt!$K$65,IF(Eingabeblatt!$K$67=\"\",\"\",Eingabeblatt!$K$67),\"\")))))","v":"-"},null,{"$f":"IF($P31=\"\",50,Eingabeblatt!$W$65)","v":""},null,{"$f":"IF(OR($L31=\"\",$L31=\"-\"),\"-\",IF($L31=\"-\",\"A*\",IF($L31<=33,\"A*\",IF($L31<=38,\"A\",IF($L31<=43,\"B\",IF($L31<=48,\"C\",IF(OR(AND(Eingabeblatt!$X$65=\"Hausflur\",$L31<=50),AND(Eingabeblatt!$X$65<>\"Hausflur\",$L31<=53)),\"D\",IF($L31<=63,\"E\",\"F\"))))))))","v":"-"},null,null,null,null,{"$f":"IF(AND(F31=\"-\",G31=\"-\"),\"nicht vorhanden\",IF(AND(I31=\"KMV\",OR(P31=\"A*\",P31=\"A\",P31=\"B\")),\"KMV nicht geeignet\",\"\"))","v":"nicht vorhanden"},null,null,null,null,null,null,null,{"$f":"IF($L31=\"\",\"\",IF($L31=\"-\",\"A*\",IF($L31+J31<=33,\"A*\",IF($L31+J31<=38,\"A\",IF($L31+J31<=43,\"B\",IF($L31+J31<=48,\"C\",IF(OR(AND(Eingabeblatt!$X$65=\"Hausflur\",$L31+J31<=50),AND(Eingabeblatt!$X$65=\"Hausflur\",$L31+J31<=53)),\"D\",IF($L31+J31<=63,\"E\",\"F\"))))))))","v":"A*"},{"$f":"IF($L31=\"\",0,IF(P31=AC31,4,0))","v":0}]
[null,"54 - 62",null,"Balkone, \nLoggien, Terrassen:",null,{"$f":"IF(Eingabeblatt!$G$70=\"Prognose\",\"X\",IF(Eingabeblatt!$G$70=\"\",\"\",\"-\"))","v":"-"},{"$f":"IF(Eingabeblatt!$G$70=\"Messung\",\"X\",IF(Eingabeblatt!$G$70=\"\",\"\",\"-\"))","v":"-"},null,{"$f":"IF(Eingabeblatt!$X$72=Eingabeblatt!$H$71,IF(Eingabeblatt!$H$72=\"\",\"\",IF(Eingabeblatt!$H$72=\"angerechnet\",\"X\",\"-\")),IF(Eingabeblatt!$X$72=Eingabeblatt!$I$71,IF(Eingabeblatt!$I$72=\"\",\"\",IF(Eingabeblatt!$I$72=\"angerechnet\",\"X\",\"-\")),IF(Eingabeblatt!$X$72=Eingabeblatt!$J$71,IF(Eingabeblatt!$J$72=\"\",\"\",IF(Eingabeblatt!$J$72=\"angerechnet\",\"X\",\"-\")),\"\")))","v":""},{"$f":"IF(Eingabeblatt!$X$72=Eingabeblatt!$H$71,IF(Eingabeblatt!$H$74=\"\",\"\",Eingabeblatt!$H$74),IF(Eingabeblatt!$X$72=Eingabeblatt!$I$71,IF(Eingabeblatt!$I$74=\"\",\"\",Eingabeblatt!$I$74),IF(Eingabeblatt!$X$72=Eingabeblatt!$J$71,IF(Eingabeblatt!$J$74=\"\",\"\",Eingabeblatt!$J$74),IF(Eingabeblatt!$X$72=Eingabeblatt!$K$71,IF(Eingabeblatt!$K$74=\"\",\"\",Eingabeblatt!$K$74),\"\"))))","v":""},null,{"$f":"IF(AND($F32=\"-\",$G32=\"-\"),\"-\",IF(Eingabeblatt!$X$72=Eingabeblatt!$H$71,IF(Eingabeblatt!$H$73=\"\",\"\",Eingabeblatt!$H$73),IF(Eingabeblatt!$X$72=Eingabeblatt!$I$71,IF(Eingabeblatt!$I$73=\"\",\"\",Eingabeblatt!$I$73),IF(Eingabeblatt!$X$72=Eingabeblatt!$J$71,IF(Eingabeblatt!$J$73=\"\",\"\",Eingabeblatt!$J$73),IF(Eingabeblatt!$X$72=Eingabeblatt!$K$71,IF(Eingabeblatt!$K$73=\"\",\"\",Eingabeblatt!$K$73),\"\")))))","v":"-"},null,{"$f":"IF($P32=\"\",50,Eingabeblatt!$W$72)","v":""},null,{"$f":"IF(OR($L32=\"\",$L32=\"-\"),\"-\",IF($L32=\"-\",\"A*\",IF($L32<=33,\"A*\",IF($L32<=38,\"A\",IF($L32<=43,\"B\",IF($L32<=48,\"C\",IF(OR(AND(Eingabeblatt!$X$72=\"Balkon\",$L32<=58),AND(Eingabeblatt!$X$72<>\"Balkon\",$L32<=50)),\"D\",IF($L32<=63,\"E\",\"F\"))))))))","v":"-"},null,null,null,null,{"$f":"IF(AND(F32=\"-\",G32=\"-\"),\"nicht vorhanden\",IF(AND(I32=\"KMV\",OR(P32=\"A*\",P32=\"A\",P32=\"B\")),\"KMV nicht geeignet\",\"\"))","v":"nicht vorhanden"},null,null,null,null,null,null,null,{"$f":"IF($L32=\"\",\"\",IF($L32=\"-\",\"A*\",IF($L32+J32<=33,\"A*\",IF($L32+J32<=38,\"A\",IF($L32+J32<=43,\"B\",IF($L32+J32<=48,\"C\",IF(OR(AND(Eingabeblatt!$X$72=\"Balkon\",$L32+J32<=58),AND(Eingabeblatt!$X$72<>\"Balkon\",$L32+J32<=50)),\"D\",IF($L32+J32<=63,\"E\",\"F\"))))))))","v":"A*"},{"$f":"IF($L32=\"\",0,IF(P32=AC32,4,0))","v":0}]
[null,null,null,"Luftschall Wohungseingangstüren",null,"Prüfzeugnis\nRechenwert","Messung am Bau",null,null,"Rw in dB"]
[null,"63 - 69",null,"in Flur oder Dielen:",null,{"$f":"IF(AND(Eingabeblatt!$G$77=\"in Flur oder Dielen\",Eingabeblatt!$G$78=\"Prüfzeugnis (Rechenwert)\"),\"X\",IF(Eingabeblatt!$G$77=\"\",\"\",\"-\"))","v":"-"},{"$f":"IF(AND(Eingabeblatt!$G$77=\"in Flur oder Dielen\",Eingabeblatt!$G$78=\"Messung am Bau\"),\"X\",IF(Eingabeblatt!$G$77=\"\",\"\",\"-\"))","v":"-"},"---",null,{"$f":"IF(Eingabeblatt!$G$77=\"in Flur oder Dielen\",Eingabeblatt!$H$79,IF(Eingabeblatt!$G$77=\"\",\"\",\"-\"))","v":"-"},null,null,null,{"$f":"IF(AND($P$34=\"-\",$P$35=\"-\"),30,IF($P34=\"F\",0,IF($P34=\"E\",0,IF($P34=\"D\",5+IF($G34=\"X\",4,0),IF($P34=\"C\",10+IF($G34=\"X\",4,0),IF($P34=\"B\",20+IF($G34=\"X\",4,0),IF($P34=\"A\",30+IF($G34=\"X\",4,0),\"\")))))))","v":30},null,{"$f":"IF($J34=\"\",\"\",IF($J34=\"-\",\"-\",IF($J34>=40,\"A\",IF($J34>=37,\"B\",IF($J34>=32,\"C\",IF($J34>=27,\"D\",IF($J34>=22,\"E\",\"F\")))))))","v":"-"}]
[null,"70 - 74",null,"in Aufenthaltsräumen:",null,{"$f":"IF(AND(Eingabeblatt!$G$77=\"in Aufenthaltsräumen\",Eingabeblatt!$G$78=\"Prüfzeugnis (Rechenwert)\"),\"X\",IF(Eingabeblatt!$G$77=\"\",\"\",\"-\"))","v":"-"},{"$f":"IF(AND(Eingabeblatt!$G$77=\"in Aufenthaltsräumen\",Eingabeblatt!$G$78=\"Messung am Bau\"),\"X\",IF(Eingabeblatt!$G$77=\"\",\"\",\"-\"))","v":"-"},"---",null,{"$f":"IF(Eingabeblatt!$G$77=\"in Aufenthaltsräumen\",Eingabeblatt!$H$79,IF(Eingabeblatt!$G$77=\"\",\"\",\"-\"))","v":"-"},null,null,null,{"$f":"IF(U35=\"nicht vorhanden\",\"\",IF(OR($P35=\"-\",$P35=\"\"),\"\",IF($P35=\"F\",0,IF($P35=\"E\",0,IF($P35=\"D\",5+IF($G35=\"X\",4,0),IF($P35=\"C\",10+IF($G35=\"X\",4,0)))))))","v":""},null,{"$f":"IF($J35=\"\",\"\",IF($J35=\"-\",\"-\",IF($J35>=42,\"C\",IF($J35>=37,\"D\",IF($J35>=32,\"E\",\"F\")))))","v":"-"},null,null,null,null,{"$f":"IF(AND($P$34=\"-\",$P$35=\"-\"),\"nicht vorhanden\",\"\")","v":"nicht vorhanden"}]
[null,null,null,null,null,"ohne\nNachweis",null,"Anforderung nach DIN 4109-1"]
[null,null,null,null,null,null,null,"erfüllt",null,"R'w,ges + Ctr,50-3150 erfüllt",null,null,null,null,null,null,null,null,null,null,null,null,null,null,null,"Bonuspunkte:",{"$f":"IF(AND($P$27<>\"F\",$P$27<>\"E\"),IF($G$27=\"X\",8,0)+IF(AND($J$27<>\"\",$J$27>=0),4,0))+IF(AND($P$28<>\"F\",$P$28<>\"E\"),IF($G$28=\"X\",8,0)+IF(AND($J$28<>\"\",$J$28>=0),4,0))+IF(AND($P$30<>\"F\",$P$30<>\"E\"),IF($G$30=\"X\",8,0)+IF(OR($H$30=\"X\",AND($J$30<>\"\",$J$30<=0)),8,0))+IF(AND($P$31<>\"F\",$P$31<>\"E\"),IF($G$31=\"X\",8,0)+IF(AND($J$31<>\"\",$J$31<=0),4,0))+IF(AND($P$32<>\"F\",$P$32<>\"E\"),IF($G$32=\"X\",4,0)+IF(AND($J$32<>\"\",$J$32<=0),4,0))+IF(AND($P$34<>\"F\",$P$34<>\"E\"),IF($G$34=\"X\",4,0))+IF(AND($P$35<>\"F\",$P$35<>\"E\"),IF($G$35=\"X\",4,0))+IF(AND($P$40<>\"F\",$P$40<>\"E\"),IF($G$40=\"X\",4,0)+IF($H$40=\"X\",2,0))+IF(AND($P$42<>\"F\",$P$42<>\"E\"),IF($H$42=\"X\",4,0))+IF(AND($P$43<>\"F\",$P$43<>\"E\"),IF($H$43=\"X\",4,0))+VLOOKUP($J$44,Daten!$A$65:$C$69,3,FALSE)+IF($J$45=\"X\",5,0)+VLOOKUP($F$53,Daten!$A$72:$C$75,3,FALSE)+IF($H$55=\"X\",5,IF($I$55=\"X\",10,IF($J$55=\"X\",15,0)))","v":{"$error":"#N/A"}}]
[null,"75 - 77",null,"Luftschall Außenbauteile",null,{"$f":"IF(Eingabeblatt!$G$81=\"ohne Nachweis\",\"X\",IF(Eingabeblatt!$G$81=\"\",\"\",\"-\"))","v":""},null,{"$f":"IF(Eingabeblatt!$G$81=\"Anforderung nach DIN 4109 erfüllt\",\"X\",IF(Eingabeblatt!$G$81=\"\",\"\",\"-\"))","v":""},null,{"$f":"IF(Eingabeblatt!$G$81=\"Anforderung nach DIN 4109 Rw,ges + Ctr,50-3150 erfüllt\",\"X\",IF(Eingabeblatt!$G$81=\"\",\"\",\"-\"))","v":""},null,null,null,{"$f":"IF($P38=\"F\",0,IF($P38=\"A\",10,IF($P38=\"A*\",15,\"\")))","v":""},null,{"$f":"IF(OR($F38=\"\",$H38=\"\",$J38=\"\"),\"\",IF($J38=\"X\",\"A*\",IF($H38=\"X\",\"A\",IF($F38=\"X\",\"E\",))))","v":""}]
[null,null,null,null,null,"Prognose","Messung","LC - LA ≤ 20 dB",null,"LAF,max,n \nin dB (A)"]
[null,"78 - 85",null,"Wasserinstallation /\nGebäudetechn. Anlagen",null,{"$f":"IF(Eingabeblatt!$G$83=\"Prognose\",\"X\",IF(Eingabeblatt!$G$83=\"\",\"\",\"-\"))","v":""},{"$f":"IF(Eingabeblatt!$G$83=\"Messung\",\"X\",IF(Eingabeblatt!$G$83=\"\",\"\",\"-\"))","v":""},{"$f":"IF(Eingabeblatt!$H$85=\"erfüllt\",\"X\",IF(Eingabeblatt!$H$85=\"\",\"\",\"-\"))","v":""},null,{"$f":"IF(Eingabeblatt!$H$84=\"\",\"\",Eingabeblatt!$H$84)","v":""},null,null,null,{"$f":"IF($J40=\"\",\"\",VLOOKUP($J40,Daten!$A$34:$C$39,3,FALSE)+IF(AND($P40<>\"F\",$P40<>\"E\"),IF($G40=\"X\",4,0)+IF($H40=\"X\",2,0)))","v":""},null,{"$f":"IF($J40=\"\",\"\",VLOOKUP($J40,Daten!$A$34:$B$39,2,FALSE))","v":""}]
[null,null,null,null,null,"ohne\nNachweis","Prognose","Messung"]
[null,null,null,"Nutzergeräusche:",null,{"$f":"IF(Eingabeblatt!$G$87=\"ohne Nachweis\",\"X\",IF(Eingabeblatt!$G$87=\"\",\"\",\"-\"))","v":""},{"$f":"IF($F42=\"X\",\"-\",IF(Eingabeblatt!$G$87=\"Körperschallentkopplung\",\"-\",IF(Eingabeblatt!$G$87<>\"Nutzergeräusche\",\"\",IF(Eingabeblatt!$G$88=\"Prognose\",\"X\",IF(Eingabeblatt!$G$88=\"\",\"\",\"-\")))))","v":""},{"$f":"IF($F42=\"X\",\"-\",IF(Eingabeblatt!$G$87=\"Körperschallentkopplung\",\"-\",IF(Eingabeblatt!$G$87<>\"Nutzergeräusche\",\"\",IF(Eingabeblatt!$G$88=\"Messung\",\"X\",IF(Eingabeblatt!$G$88=\"\",\"\",\"-\")))))","v":""},"LAF,max,n in dB(A)",{"$f":"IF(F42=\"X\",\"-\",IF(Eingabeblatt!$G$87=\"Körperschallentkopplung\",\"-\",IF(Eingabeblatt!$G$87<>\"Nutzergeräusche\",\"\",IF(Eingabeblatt!$H$89=\"\",\"\",Eingabeblatt!$H$89))))","v":""},null,null,null,{"$f":"IF($P42=\"F\",0,IF($P42=\"E\",0,IF($P42=\"D\",5+IF($H42=\"X\",4,0),IF($P42=\"C\",10+IF($H42=\"X\",4,0),IF($P42=\"B\",15+IF($H42=\"X\",4,0),IF($P42=\"A\",20+IF($H42=\"X\",4,0),IF($P42=\"A*\",25+IF($H42=\"X\",4,0),\"\")))))))","v":""},null,{"$f":"IF($J42=\"\",\"\",IF($J42=\"-\",\"-\",VLOOKUP($J42,Daten!$A$47:$B$53,2,FALSE)))","v":""}]
[null,"86 - 92",null,"Körperschall-\nentkopplung KHW:",null,{"$f":"IF(Eingabeblatt!$G$87=\"ohne Nachweis\",\"X\",IF(Eingabeblatt!$G$87=\"\",\"\",\"-\"))","v":""},{"$f":"IF($F43=\"X\",\"-\",IF(Eingabeblatt!$G$87=\"Nutzergeräusche\",\"-\",IF(Eingabeblatt!$G$87<>\"Körperschallentkopplung\",\"\",IF(Eingabeblatt!$G$88=\"Prognose\",\"X\",IF(Eingabeblatt!$G$88=\"\",\"\",\"-\")))))","v":""},{"$f":"IF($F43=\"X\",\"-\",IF(Eingabeblatt!$G$87=\"Nutzergeräusche\",\"-\",IF(Eingabeblatt!$G$87<>\"Körperschallentkopplung\",\"\",IF(Eingabeblatt!$G$88=\"Messung\",\"X\",IF(Eingabeblatt!$G$88=\"\",\"\",\"-\")))))","v":""},"L'Kn,w in dB",{"$f":"IF(F43=\"X\",\"-\",IF(Eingabeblatt!$G$87=\"Nutzergeräusche\",\"-\",IF(Eingabeblatt!$G$87<>\"Körperschallentkopplung\",\"\",IF(Eingabeblatt!$H$90=\"\",\"\",Eingabeblatt!$H$90))))","v":""},null,null,null,{"$f":"IF($P43=\"F\",0,IF($P43=\"E\",0,IF($P43=\"D\",5+IF($H43=\"X\",4,0),IF($P43=\"C\",10+IF($H43=\"X\",4,0),IF($P43=\"B\",15+IF($H43=\"X\",4,0),IF($P43=\"A\",20+IF($H43=\"X\",4,0),IF($P43=\"A*\",25+IF($H43=\"X\",4,0),\"\")))))))","v":""},null,{"$f":"IF($J43=\"\",\"\",IF($J43=\"-\",\"-\",VLOOKUP($J43,Daten!$A$55:$B$62,2,FALSE)))","v":""}]
[null,"93 - 97",null,"fremde Nutzer\ndirekt angrenzend:",null,null,null,null,null,{"$f":"IF(Eingabeblatt!$G$92=\"\",\"\",Eingabeblatt!$G$92)","v":""},null,null,null,{"$f":"IF($P44=\"C\",0,IF($P44=\"B\",5,IF($P44=\"A\",10,IF($P44=\"A*\",IF($J44=2,15,20),\"\"))))","v":""},null,{"$f":"IF($J44=\"\",\"\",VLOOKUP($J44,Daten!$A$65:$B$69,2,FALSE))","v":""}]
[null,"98 - 99",null,"Anordnung der lauten Räume schalltechnisch:",null,"ungünstig:",{"$f":"IF(Eingabeblatt!G94=\"ungünstig\",\"X\",IF(Eingabeblatt!G94=\"\",\"\",\"-\"))","v":""},null,"günstig:",{"$f":"IF(Eingabeblatt!G94=\"günstig\",\"X\",IF(Eingabeblatt!G94=\"\",\"\",\"-\"))","v":""},null,null,null,{"$f":"IF($J45=\"X\",5,IF($J45=\"\",\"\",0))","v":""}]
[null,"100 - 103",null,"besonders laute Räume \ngem. DIN 4109-1:2018-01 angrenzend:",null,"keine besonders laute Räume",null,null,null,{"$f":"IF(Eingabeblatt!G96=\"\",\"\",IF(Eingabeblatt!G96=\"keine lauten angrenzenden Gewerberäume\",\"X\",\"-\"))","v":""},null,null,null,{"$f":"IF($J46=\"X\",15,IF($J46=\"-\",\"---\",IF($J46=\"\",\"\",0)))","v":""},null,{"$f":"IF($J46=\"X\",\"A*\",IF($J46=\"-\",\"---\",\"\"))","v":""}]
[null,null,null,null,null,"Lr  t / n     25 / 15 dB (A)",null,null,null,{"$f":"IF(Eingabeblatt!G96=\"\",\"\",IF(Eingabeblatt!G96=\"Lr  t / n:      25 / 15 dB (A)    und     Lmax  t / n:    35 / 25 dB (A)\",\"X\",\"-\"))","v":""},null,null,null,{"$f":"IF($J47=\"X\",10,IF($J47=\"-\",\"---\",IF($J47=\"\",\"\",0)))","v":""},null,{"$f":"IF($J47=\"X\",\"B\",IF($J47=\"-\",\"---\",\"\"))","v":""}]
[null,null,null,null,null,"Lmax  t / n     35 / 25 dB (A)"]
[null,null,null,null,null,"Lr  t / n     30 / 20 dB (A)",null,null,null,{"$f":"IF(Eingabeblatt!G96=\"\",\"\",IF(Eingabeblatt!G96=\"Lr  t / n:      30 / 20 dB (A)    und     Lmax  t / n:    40 / 30 dB (A)\",\"X\",\"-\"))","v":""},null,null,null,{"$f":"IF($J49=\"X\",5,IF($J49=\"-\",\"---\",IF($J49=\"\",\"\",0)))","v":""},null,{"$f":"IF($J49=\"X\",\"D\",IF($J49=\"-\",\"---\",\"\"))","v":""}]
[null,null,null,null,null,"Lmax  t / n     40 / 30 dB (A)"]
[null,null,null,null,null,"Lr  t / n     35 / 25 dB (A)",null,null,null,{"$f":"IF(Eingabeblatt!G96=\"\",\"\",IF(Eingabeblatt!G96=\"Lr  t / n:      35 / 25 dB (A)    und     Lmax  t / n:    45 / 35 dB (A)\",\"X\",\"-\"))","v":""},null,null,null,{"$f":"IF($J51=\"X\",0,IF($J51=\"-\",\"---\",IF($J51=\"\",\"\",0)))","v":""},null,{"$f":"IF($J51=\"X\",\"E\",IF($J51=\"-\",\"---\",\"\"))","v":""}]
[null,null,null,null,null,"Lmax  t / n     45 / 35 dB (A)"]
[null,"104 - 105",null,"Nachhallzeit Treppenhaus",null,{"$f":"IF(Eingabeblatt!$G$98=\"\",\"\",Eingabeblatt!$G$98)","v":""},null,null,null,null,null,null,null,{"$f":"IF($P53=\"\",\"\",IF($P53=\"-\",\"-\",IF($P53=\"B\",5,8)))","v":""},null,{"$f":"IF($F53=\"\",\"\",VLOOKUP($F53,Daten!A72:B74,2,FALSE))","v":""},null,null,null,null,"nur Empfehlungscharakter"]
[null,null,null,null,null,null,null,"Klasse EW1","Klasse EW2","Klasse EW3",null,"keine \nvereinbart"]
[null,"106 - 109",null,"eigener Wohnbereich",null,"vereinbarte Empfehlung",null,{"$f":"IF(Eingabeblatt!$G$100=\"Klasse EW1 erfüllt\",\"X\",IF(Eingabeblatt!$G$100=\"\",\"\",\"-\"))","v":""},{"$f":"IF(Eingabeblatt!$G$100=\"Klasse EW2 erfüllt\",\"X\",IF(Eingabeblatt!$G$100=\"\",\"\",\"-\"))","v":""},{"$f":"IF(Eingabeblatt!$G$100=\"Klasse EW3 erfüllt\",\"X\",IF(Eingabeblatt!$G$100=\"\",\"\",\"-\"))","v":""},null,{"$f":"IF(Eingabeblatt!$G$100=\"keine Empfehlung vereinbart\",\"X\",IF(Eingabeblatt!$G$100=\"\",\"\",\"-\"))","v":""},null,{"$f":"IF(Eingabeblatt!$G$100=\"\",\"\",VLOOKUP(Eingabeblatt!$G$100,Daten!$A$77:$C$80,3,FALSE))","v":""},null,{"$f":"IF(Eingabeblatt!$G$100=\"\",\"\",VLOOKUP(Eingabeblatt!$G$100,Daten!$A$77:$C$80,2,FALSE))","v":""},null,null,null,null,{"$f":"IF(J55=\"\",\"\",\"nur Empfehlungscharakter\")","v":""}]
[null,null,null,"Gesamtpunkte III:",null,null,null,null,null,null,null,null,null,{"$f":"SUM(N27:N55)","v":180}]
[]
[]
[]
[null,"Aussteller:",null,{"$f":"IF(Eingabeblatt!$E$6=\"\",\"\",Eingabeblatt!$E$6)","v":""},null,null,null,null,null,null,null,null,null,"Gesamtpunktzahl",null,null,null,"Beurteilung",null,null,"Unterschrift:"]
[null,null,null,{"$f":"IF(Eingabeblatt!$E$7=\"\",\"\",Eingabeblatt!$E$7)","v":""},null,null,null,null,null,null,"Standort und Außen-lärmsituation",null,null,{"$f":"IF(AND(F19=\"\",F21=\"\",J21=\"\"),\"\",N22)","v":""},null,null,null,{"$f":"R17","v":""}]
[null,null,null,{"$f":"IF(Eingabeblatt!$E$8=\"\",\"\",Eingabeblatt!$E$8)","v":""}]
[null,null,null,{"$f":"IF(Eingabeblatt!E9=\"\",\"\",Eingabeblatt!E9)","v":""}]
[]
[null,null,null,null,null,null,null,null,null,null,"Baulicher Schallschutz",null,null,{"$f":"N56","v":180},null,null,null,{"$f":"R24","v":""},null,null,"Gültig bis:"]
[null,"Datum:",null,{"$f":"IF(Eingabeblatt!$K$6=\"\",\"\",Eingabeblatt!$K$6)","v":""}]
[null,null,null,null,null,null,null,null,null,null,null,null,null,null,null,null,null,null,null,null,{"$f":"Eingabeblatt!$K$8","v":""}]
[]
[]
[null,null,null,null,null,null,null,null,null,null,"Copyright © 2018 Deutsche Gesellschaft für Akustik e.V. (DEGA)",null,null,null,null,null,null,null,null,null,null,null,null,"Version 02"]
[null,null,null,null,null,null,null,null,null,null,"Voltastraße 5, 13355 Berlin, www.dega-akustik.de "]

{"sheet":"Schallschutzausweis einfach","index":4,"n_rows":75,"n_cols":26,"rows_kept":75,"cut":false,"hidden":true,"merged":[[1,1,1,24],[3,3,3,24],[5,4,5,9],[5,13,5,19],[5,21,6,24],[6,4,6,9],[6,13,6,19],[7,4,7,9],[7,13,7,19],[7,21,7,24],[8,13,8,19],[8,5,8,9],[10,3,10,24],[12,1,14,24],[15,1,16,5],[15,23,16,24],[17,1,22,5],[17,6,24,22],[17,23,24,24],[23,1,24,5],[26,3,26,24],[28,1,30,24],[31,1,34,5],[31,6,32,20],[31,23,34,24],[33,6,34,19],[35,1,38,5],[35,19,35,21],[35,23,41,24],[38,7,38,22],[39,1,39,5],[40,1,41,5],[61,1,61,16],[61,18,61,24],[53,3,53,24],[55,1,55,16],[55,18,55,24],[56,1,56,16],[56,18,56,24],[57,1,57,16],[57,18,57,24],[43,1,47,5],[58,1,58,16],[59,1,59,16],[60,1,60,16],[60,18,60,24],[43,14,45,16],[43,18,45,21],[49,1,51,5],[49,6,49,24],[50,6,51,24],[65,4,65,9],[66,4,66,9],[67,4,67,9],[69,12,69,16],[70,12,70,16]]}
[]
[null,"Schallschutzausweis"]
[]
[]
[]
[null,"Antragsteller:",null,null,{"$f":"'Schallschutzausweis ausführlich'!E6:I6","v":0},null,null,null,null,null,null,"Gebäude:",null,{"$f":"'Schallschutzausweis ausführlich'!M6","v":0},null,null,null,null,null,null,null,"Bezeichung der Wohneinheit"]
[null,null,null,null,{"$f":"'Schallschutzausweis ausführlich'!E7:I7","v":0},null,null,null,null,null,null,null,null,{"$f":"'Schallschutzausweis ausführlich'!M7","v":0}]
[null,null,null,null,{"$f":"'Schallschutzausweis ausführlich'!E8:I8","v":0},null,null,null,null,null,null,null,null,{"$f":"'Schallschutzausweis ausführlich'!M8","v":0},null,null,null,null,null,null,null,{"$f":"'Schallschutzausweis ausführlich'!U8","v":0}]
[null,null,null,null,{"$f":"Eingabeblatt!$F$16","v":0},{"$f":"Eingabeblatt!H16","v":0},null,null,null,null,null,null,null,{"$f":"'Schallschutzausweis ausführlich'!M9","v":" "}]
[]
[]
[]
[null,"Standort und Außenlärmsituation"]
[]
[]
[null,"Punktzahl",null,null,null,null,null,null,null,null,null,null,null,null,null,null,null,null,null,null,null,null,null,"Klasse"]
[]
[null,{"$f":"'Schallschutzausweis ausführlich'!$N$61","v":""},null,null,null,null,{"$f":"IF(B18=\"\",\"Es sind keine Angaben zu Standort und Außenlärmsituation vorhanden.\",IF($X18=\"\",\"\",VLOOKUP($X18,Daten!A134:B140,2,FALSE)))","v":"Es sind keine Angaben zu Standort und Außenlärmsituation vorhanden."},null,null,null,null,null,null,null,null,null,null,null,null,null,null,null,null,{"$f":"'Schallschutzausweis ausführlich'!R17","v":""}]
[]
[]
[]
[]
[]
[null,{"$f":"IF(X18=\"\",\"\",\"von mind. \" & IF(X18=\"A*\",55,IF(X18=\"A\",45,IF(X18=\"B\",40,IF(X18=\"C\",25,IF(X18=\"D\",20,IF(X18=\"E\",10,0)))))) & \" in Stufe \" &X18)","v":""}]
[]
[]
[]
[]
[null,"Baulicher Schallschutz"]
[]
[]
[null,"Punktzahl",null,null,null,null,"Ausführungsqualität teilweise durch Messungen überprüft (siehe detaillierter SSAw)",null,null,null,null,null,null,null,null,null,null,null,null,null,null,"ja",{"$f":"IF(X36=\"\",\"\",IF(OR('Schallschutzausweis ausführlich'!G27=\"X\",'Schallschutzausweis ausführlich'!G28=\"X\",'Schallschutzausweis ausführlich'!G30=\"X\",'Schallschutzausweis ausführlich'!G31=\"X\",'Schallschutzausweis ausführlich'!G32=\"X\",'Schallschutzausweis ausführlich'!G34=\"X\",'Schallschutzausweis ausführlich'!G35=\"X\",'Schallschutzausweis ausführlich'!G40=\"X\",'Schallschutzausweis ausführlich'!H42=\"X\",'Schallschutzausweis ausführlich'!H43=\"X\"),\"X\",\"\"))","v":""},"Klasse"]
[null,null,null,null,null,null,null,null,null,null,null,null,null,null,null,null,null,null,null,null,null,"nein",{"$f":"IF(X36=\"\",\"\",IF(OR('Schallschutzausweis ausführlich'!G27=\"X\",'Schallschutzausweis ausführlich'!G28=\"X\",'Schallschutzausweis ausführlich'!G30=\"X\",'Schallschutzausweis ausführlich'!G31=\"X\",'Schallschutzausweis ausführlich'!G32=\"X\",'Schallschutzausweis ausführlich'!G34=\"X\",'Schallschutzausweis ausführlich'!G35=\"X\",'Schallschutzausweis ausführlich'!G40=\"X\",'Schallschutzausweis ausführlich'!H42=\"X\",'Schallschutzausweis ausführlich'!H43=\"X\"),\"\",\"X\"))","v":""}]
[null,null,null,null,null,null,"Gesamtklasse von allen Kriterien eingehalten",null,null,null,null,null,null,null,null,null,null,null,null,null,null,"ja",{"$f":"IF(X36=\"\",\"\",'Schallschutzausweis ausführlich'!AL28)","v":""}]
[null,null,null,null,null,null,null,null,null,null,null,null,null,null,null,null,null,null,null,null,null,"nein",{"$f":"IF(X36=\"\",\"\",IF('Schallschutzausweis ausführlich'!AL28=\"X\",\"\",\"X\"))","v":""}]
[null,{"$f":"'Schallschutzausweis ausführlich'!N65","v":180},null,null,null,null,null,null,null,null,null,null,null,null,null,null,null,null,null,null,null,null,null,{"$f":"'Schallschutzausweis ausführlich'!$R$65","v":""}]
[]
[]
[]
[null,{"$f":"IF($X$36=\"\",\"\",\"(incl. \" & 'Schallschutzausweis ausführlich'!$AA$37 & \" Bonuspunkte)\")","v":""}]
[null,{"$f":"IF(X36=\"\",\"\",\"von mind. \" & IF(X36=\"A*\",340,IF(X36=\"A\",270,IF(X36=\"B\",210,IF(X36=\"C\",145,IF(X36=\"D\",80,IF(X36=\"E\",30,0)))))) & \" in Stufe \" &X36)","v":""}]
[]
[]
[null,"Bauübliche \nEinordnung "]
[]
[]
[]
[]
[]
[null,"Bewertung",null,null,null,null,{"$f":"IF($X$36=\"\",\"\",VLOOKUP($X$36,Daten!$A$143:$C$149,3,FALSE))","v":""}]
[null,null,null,null,null,null,{"$f":"IF($X$36=\"\",\"\",VLOOKUP($X$36,Daten!$A$143:$B$149,2,FALSE))","v":""}]
[]
[]
[]
[]
[null,"Gebäudetyp",null,null,null,null,null,null,null,null,null,null,null,null,null,null,null,null,{"$f":"Eingabeblatt!$F$24","v":0}]
[null,"Baujahr des Gebäudes",null,null,null,null,null,null,null,null,null,null,null,null,null,null,null,null,{"$f":"Eingabeblatt!$F$25","v":0}]
[null,"Anzahl der Wohneinheiten",null,null,null,null,null,null,null,null,null,null,null,null,null,null,null,null,{"$f":"Eingabeblatt!$F$26","v":0}]
[null,"Bezeichnung der Wohneinheit",null,null,null,null,null,null,null,null,null,null,null,null,null,null,null,null,{"$f":"Eingabeblatt!$F$31","v":0}]
[null,"Geschoss",null,null,null,null,null,null,null,null,null,null,null,null,null,null,null,null,{"$f":"IF(OR(Eingabeblatt!F32=\"Obergeschoss\",Eingabeblatt!F32=\"Untergeschoss\"),Eingabeblatt!H32 & \". \" & Eingabeblatt!F32 & \" \" & Eingabeblatt!I32,IF(Eingabeblatt!F32=\"Sonstiges\",Eingabeblatt!I32,IF(OR(Eingabeblatt!F32=\"Erdgeschoss\",Eingabeblatt!F32=\"Dachgeschoss\"),Eingabeblatt!F32 & \" \" & Eingabeblatt!I32,\"\")))","v":""}]
[null,"Anzahl der Räume",null,null,null,null,null,null,null,null,null,null,null,null,null,null,null,null,{"$f":"Eingabeblatt!F33","v":0}]
[null,"Wohnfläche [m²]",null,null,null,null,null,null,null,null,null,null,null,null,null,null,null,null,{"$f":"Eingabeblatt!F34","v":0}]
[]
[]
[]
[null,"Aussteller:",null,null,{"$f":"IF(Eingabeblatt!E6=\"\",\"\",Eingabeblatt!E6)","v":""}]
[null,null,null,null,{"$f":"IF(Eingabeblatt!E7=\"\",\"\",Eingabeblatt!E7)","v":""}]
[null,null,null,null,{"$f":"IF(Eingabeblatt!E8=\"\",\"\",Eingabeblatt!E8)","v":""}]
[null,null,null,null,{"$f":"IF(Eingabeblatt!E9=\"\",\"\",Eingabeblatt!E9)","v":""}]
[null,"Datum:",null,null,null,null,null,null,null,null,null,null,"Gültig bis:"]
[null,{"$f":"IF(Eingabeblatt!K6=\"\",\"\",Eingabeblatt!K6)","v":""},null,null,{"$f":"IF(Eingabeblatt!K6=\"\",\"\",Eingabeblatt!K6)","v":""},null,null,null,null,null,null,null,{"$f":"IF(Eingabeblatt!K8=\"\",\"\",Eingabeblatt!K8)","v":""},null,null,null,null,null,null,null,null,"Unterschrift:"]
[]
[]
[null,null,null,null,null,null,null,null,null,null,null,"Copyright © 2018 Deutsche Gesellschaft für Akustik e.V. (DEGA)",null,null,null,null,null,null,null,null,null,null,null,null,null,"Version 02"]
[null,null,null,null,null,null,null,null,null,null,null,"Voltastraße 5, 13355 Berlin, www.dega-akustik.de "]

{"sheet":"Hinweise","index":5,"n_rows":55,"n_cols":7,"rows_kept":55,"cut":false,"hidden":false,"merged":[[1,1,1,5]]}
[]
[null,"Hinweise zum Schallschutzausweis"]
[]
[]
[]
[null,"Klasse",null,"Beschreibung",null,"Bemerkung"]
[]
[]
[]
[null,null,null,"Standort und Außenlärmsituation"]
[]
[null,"Klasse A*:",null,"sehr leises Wohngebiet"]
[]
[null,"Klasse A:",null,"ruhiges Wohngebiet"]
[]
[null,"Klasse B:",null,"Wohngebiet ohne besondere Anforderungen an den Schallschutz der Außenbauteile"]
[]
[null,"Klasse C:",null,"Misch- bzw. Kerngebiet mit mäßiger Außenlärmbelastung und Anforderungen an den Schallschutz der Außenbauteile"]
[]
[null,"Klasse D:",null,"Misch- bzw. Kerngebiet mit hohen Anforderungen an den Schallschutz der Außenbauteile"]
[]
[null,"Klasse E:",null,"Gewerbegebiet oder hohe Außenlärmbelastung und sehr hohe Anforderungen an den Schallschutz der Außenbauteile"]
[]
[null,"Klasse F:",null,"Industriegebiet oder sehr hohe Außenlärmbelastung und sehr hohen Anforderungen an den Schallschutz der Außenbauteile"]
[]
[]
[]
[null,null,null,"Baulicher Schallschutz"]
[]
[null,"Klasse A*:",null,"Wohneinheit mit sehr gutem Schallschutz, die ein ungestörtes Wohnen nahezu ohne Rücksichtnahme gegenüber den Nachbarn ermöglicht. ",null,"Entspricht einem hohen Schallschutz in Doppel- und Reihenhäusern"]
[]
[null,"Klasse A:",null,"Wohneinheit mit sehr gutem Schallschutz, die ein ungestörtes Wohnen ohne große Rücksichtnahme gegenüber den Nachbarn ermöglicht. ",null,"Entspricht einem erhöhten Schallschutz in Doppel- und Reihenhäusern"]
[]
[null,"Klasse B:",null,"Wohneinheit mit gutem Schallschutz, die bei gegenseitiger Rücksichtnahme zwischen den Nachbarn ein ruhiges Wohnen bei weitgehendem Schutz der Privatsphäre ermöglicht.",null,"Entspricht einem hohen Schallschutz in Mehrfamilienhäusern und einem normalen Schallschutz in Doppel- und Reihenhäusern"]
[]
[null,"Klasse C:",null,"Wohneinheit mit gutem Schallschutz, in der die Bewohner bei üblichem rücksichtsvollen Wohnverhalten im allgemeinen Ruhe finden und die Vertraulichkeit gewahrt bleibt.",null,"Entspricht einem erhöhten Schallschutz in Mehrfamilienhäusern"]
[]
[null,"Klasse D:",null,"Wohneinheit mit einem Schallschutz, der die Anforderungen der DIN 4109-1:2018-01 für Geschosshäuser mit Wohnungen und Arbeitsräumen im Wesentlichen erfüllt (Ausnahmen: siehe II.3) und damit die Bewohner in Aufenthaltsräumen im Sinne des Gesundheitsschutzes vor unzumutbaren Belästigungen durch Schallübertragung aus fremden Wohneinheiten und von außen schützt. Es kann nicht erwartet werden, dass Geräusche aus fremden Wohneinheiten oder von außen nicht mehr wahrgenommen werden. Dies erfordert gegenseitige Rücksichtnahme durch Vermeidung unnötigen Lärms. Die Anforderungen setzen voraus, dass in benachbarten Räumen keine ungewöhnlich starken Geräusche verursacht werden.",null,"Entspricht einem normalen Schallschutz in Mehrfamilienhäusern"]
[]
[null,"Klasse E:",null,"Wohneinheit mit einem Schallschutz, der die Anforderungen der DIN 4109-1:2018-01 nicht erfüllt. Belästigungen durch Schallübertragung aus fremden Wohneinheiten und von außen sind möglich; besondere Rücksichtnahme ist unbedingt erforderlich. Die Vertraulichkeit ist nicht mehr gegeben."]
[]
[null,"Klasse F:",null,"Wohneinheit mit einem schlechten Schallschutz, der deutlich unter den Anforderungen der DIN 4109-1:2018-01 liegt. Mit Belästigungen durch Schallübertragung aus fremden Wohneinheiten und von außen muss auch bei bewusster Rücksichtnahme gerechnet werden; Vertraulichkeit kann nicht erwartet werden."]
[]
[null,"Klasse EW3:",null,"Schallschutz im eigenen Wohnbereich, bei welchem Vertraulichkeit gewährleistet werden kann und Störungen vermieden werden."]
[]
[null,"Klasse EW2:",null,"Schallschutz im eigenen Wohnbereich, bei welchem ein Mindestmaß an Vertraulichkeit gewährleistet werden kann und erhebliche Störungen vermieden werden."]
[]
[null,"Klasse EW1:",null,"Schallschutz im eigenen Wohnbereich, bei welchem Vertraulichkeit nicht erwartet werden kann."]
[]
[]
[]
[]
[null,null,null,null,"SSA V1"]
[null,null,null,"Copyright © 2018 Deutsche Gesellschaft für Akustik e.V. (DEGA)",null,null,"Version 02"]
[null,null,null,"Voltastraße 5, 13355 Berlin, www.dega-akustik.de "]

{"sheet":"LS Decken","index":6,"n_rows":15,"n_cols":14,"rows_kept":15,"cut":false,"hidden":true,"merged":[[14,0,14,5],[9,3,9,4],[11,3,11,4],[0,0,0,1],[0,3,0,4],[2,0,11,1],[2,3,2,4],[10,3,10,4],[9,6,10,6],[2,6,7,6],[3,3,3,4],[4,3,4,4],[5,3,5,4],[6,3,6,4],[7,3,7,4]]}
["Bereich",null,"NR","Kriterium",null,"Punkte",null,"F","E","D","C","B","A","A*"]
[]
["Decken\nR'w in dB",null,27,"> 72",null,50]
[null,null,28,"> 67",null,40]
[null,null,29,"> 62",null,30]
[null,null,30,"> 57",null,20]
[null,null,31,"> 54",null,10]
[null,null,32,"> 50",null,5]
[null,null,null,"Nachweis"]
[null,null,33,"rechnerischer Nachweis nach\nDIN 4109-1:2018-01",null,0]
[null,null,34,"mess-\ntechnischer Nachweis durch",null,8]
[null,null,35,"Anforderung bei R'w + Ctr,50-3150 erfüllt",null,4]
[]
["Anforderungen Luftschall"]
["Decken R'w in dB",null,null,null,null,null,null,"< 50 dB","> 50 dB","> 54 dB","> 57 dB","> 62 dB","> 67 dB","> 72 dB"]

{"sheet":"TS Decken","index":7,"n_rows":17,"n_cols":14,"rows_kept":17,"cut":false,"hidden":true,"merged":[[14,0,14,5],[9,3,9,4],[11,3,11,4],[0,0,0,1],[0,3,0,4],[2,0,11,1],[2,3,2,4],[10,3,10,4],[8,3,8,4],[2,6,7,6],[3,3,3,4],[4,3,4,4],[5,3,5,4],[6,3,6,4],[7,3,7,4]]}
["Bereich",null,"NR","Kriterium",null,"Punkte",null,"F","E","D","C","B","A","A*"]
[]
["Decken\nL'nw in dB",null,36,"< 30",null,50]
[null,null,37,"< 35",null,40]
[null,null,38,"< 40",null,30]
[null,null,39,"< 45",null,20]
[null,null,40,"< 50",null,10]
[null,null,41,"< 60",null,5]
[null,null,null,"Nachweis"]
[null,null,42,"rechnerischer Nachweis nach\nDIN 4109-01:2018-01\nDIN EN 12354-2",null,0]
[null,null,43,"mess-\ntechnischer Nachweis durch",null,8]
[null,null,44,"Anforderung bei \nL'nw + CI,50-2500 erfüllt\noder fr,Estrich < 50 Hz",null,8]
[]
["Anforderungen Trittschall"]
["Decken L'nw in dB",null,null,null,null,null,null,"> 60 dB a)","< 60 dBa)","< 50 dB","< 45 dBa)","< 40 dBa)","< 35 dB","< 30 dB"]
[]
[" a)","austauschbarer Bodenbelag anrechenbar (rechnerisch nur bei geprüftem DLw)"]

{"sheet":"TS Treppen, Podeste, Hausflure","index":8,"n_rows":17,"n_cols":14,"rows_kept":17,"cut":false,"hidden":true,"merged":[[14,0,14,5],[9,3,9,4],[11,3,11,4],[0,0,0,1],[0,3,0,4],[2,0,11,1],[2,3,2,4],[10,3,10,4],[8,3,8,4],[2,6,7,6],[3,3,3,4],[4,3,4,4],[5,3,5,4],[6,3,6,4],[7,3,7,4]]}
["Bereich",null,"NR","Kriterium",null,"Punkte",null,"F","E","D","C","B","A","A*"]
[]
["Treppen, Podeste, Laubengänge, Hausflure\nL'nw in dB\n\n1) bei Hausfluren",null,45,"< 33",null,50]
[null,null,46,"< 38",null,40]
[null,null,47,"< 43",null,30]
[null,null,48,"< 48",null,20]
[null,null,49,"≤ 53    (≤ 50) 1)",null,10]
[null,null,50,"< 63",null,5]
[null,null,null,"Nachweis"]
[null,null,51,"rechnerischer Nachweis nach\nDIN 4109-1:2018-01",null,0]
[null,null,52,"mess-\ntechnischer Nachweis",null,8]
[null,null,53,"Anforderung bei L'nw + CI,50-2500 erfüllt",null,4]
[]
["Anforderungen Trittschall"]
["Treppen, Podeste, Hausflure L'nw in dB",null,null,null,null,null,null,"> 63 dB a)","< 63 dB a)","≤ 53 dB\n(≤ 50 dB) 1)","< 48 dB a)","< 43 dB a)","< 38 dB","< 33 dB"]
[]
[" a)","austauschbarer Bodenbelag anrechenbar (rechnerisch nur bei geprüftem DLw)"]

{"sheet":"TS Balkone, Loggien, Terrassen","index":9,"n_rows":17,"n_cols":14,"rows_kept":17,"cut":false,"hidden":true,"merged":[[14,0,14,5],[9,3,9,4],[11,3,11,4],[0,0,0,1],[0,3,0,4],[2,0,11,1],[2,3,2,4],[10,3,10,4],[8,3,8,4],[2,6,7,6],[3,3,3,4],[4,3,4,4],[5,3,5,4],[6,3,6,4],[7,3,7,4]]}
["Bereich",null,"NR","Kriterium",null,"Punkte",null,"F","E","D","C","B","A","A*"]
[]
["Balkone, Loggien Terrassen\nL'n,w in dB\n\n1) bei Balkonen",null,54,"≤ 33",null,25]
[null,null,55,"≤ 38",null,20]
[null,null,56,"≤ 43",null,15]
[null,null,57,"≤ 48",null,10]
[null,null,58,"≤ 53   (≤ 58) 1)",null,5]
[null,null,59,"≤ 63",null,0]
[null,null,null,"Nachweis"]
[null,null,60,"rechnerischer Nachweis nach\nDIN 4109-1:2018-01",null,0]
[null,null,61,"messtechnischer Nachweis",null,4]
[null,null,62,"Anforderung bei L'n,w + CI,50-2500 erfüllt",null,4]
[]
["Anforderungen Trittschall"]
["Balkone, Loggien, Terrassen L'n,w in dB",null,null,null,null,null,null,"> 63 dB a)","< 63 dBa)","< 53 dB\n (≤ 58) 1)","< 48 dB a)","< 43 dB a)","< 38 dB","< 33 dB"]
[]
[" a)","weichfedernder Bodenbelag anrechenbar (rechnerisch nur bei geprüftem DLw)"]

{"sheet":"LS Eingangstüren","index":10,"n_rows":20,"n_cols":14,"rows_kept":20,"cut":false,"hidden":true,"merged":[[2,6,5,6],[3,3,3,4],[4,3,4,4],[5,3,5,4],[0,0,0,1],[0,3,0,4],[2,0,8,1],[2,3,2,4],[6,3,6,4],[7,3,7,4],[7,6,8,6],[8,3,8,4],[9,0,13,1],[17,11,17,13],[12,6,13,6],[13,3,13,4],[9,3,9,4],[10,3,10,4],[11,3,11,4],[12,3,12,4]]}
["Bereich",null,"NR","Kriterium",null,"Punkte",null,"F","E","D","C","B","A","A*"]
[]
["Luftschall Wohnungseingangstüren \n(in Flure oder Dielen)\nRw in dB",null,63,"> 40",null,30]
[null,null,64,"> 37",null,20]
[null,null,65,"> 32",null,10]
[null,null,66,"> 27",null,5]
[null,null,67,"> 22",null,0]
[null,null,68,"Nachweis durch Prüfzeugnis \n(Rechenwert RwR)",null,0]
[null,null,69,"Nachweis durch Messung am Bau",null,4]
["Luftschall Wohnungseingangstüren \n(direkt in Aufenthaltsräume)\nRw in dB",null,70,"> 42",null,10]
[null,null,71,"> 37",null,5]
[null,null,72,"> 32",null,0]
[null,null,73,"Nachweis durch Prüfzeugnis \n(Rechenwert RwR)",null,0]
[null,null,74,"Nachweis durch Messung am Bau",null,4]
[]
["Anforderungen Luftschall "]
["Wohnungseingangstüren in Fluren oder Dielen",null,null,null,null,null,null,"< 22 dB","> 22 dB","> 27 dB","> 32 dB","> 37 dB","> 40 dB"]
["Wohnungseingangstüren direkt in Aufenthaltsräumen",null,null,null,null,null,null,"<32 dB","> 32 dB","> 37 dB","> 42 dB"]
[]
["Anmerkung: Die Anforderung an die Türen gilt für die Schallübertragung über die betriebsfertig eingebaute Tür ohne Nebenwege."]

{"sheet":"LS Außenbauteile","index":11,"n_rows":8,"n_cols":14,"rows_kept":8,"cut":false,"hidden":true,"merged":[[7,8,7,12],[0,0,0,1],[0,3,0,4],[2,3,2,4],[7,0,7,5],[3,3,3,4],[4,3,4,4]]}
["Bereich",null,"NR","Kriterium",null,"Punkte",null,"F","E","D","C","B","A","A*"]
[]
["Luftschall Außenbauteile",null,75,"DIN 4109-1 mit R'w,ges + Ctr,50-3150 erfüllt",null,15]
[null,null,76,"DIN 4109-1 erfüllt",null,10]
[null,null,77,"ohne Nachweis",null,0]
[]
["Anforderungen Außenbauteile (Luftschall) gültig ab Lärmpegelbereich II nach DIN 4109. Für geringere Außenlärmpegel keine Anforderung. "]
["Luftschall [R'w,ges]",null,null,null,null,null,null,"ohne Nachweis","wie DIN 4109-1",null,null,null,null,"wie \nDIN 4109-1 mit R'w,ges + Ctr,50-3150"]

{"sheet":"Wasserinst., haustech. Anlagen","index":12,"n_rows":15,"n_cols":14,"rows_kept":15,"cut":false,"hidden":true,"merged":[[14,0,14,13],[0,0,0,1],[0,3,0,4],[2,0,9,1],[2,6,6,6],[7,3,7,4],[7,6,8,6],[8,3,8,4],[9,3,9,4],[12,0,12,5],[12,12,12,13]]}
["Bereich",null,"NR","Kriterium",null,"Punkte",null,"F","E","D","C","B","A","A*"]
[]
["Wasserinstallation und\nHaustechnische Anlagen\nLAF,max,n in dB (A)",null,78,"LAFmax,n in dB (A)","< 20",30]
[null,null,79,"LAFmax,n in dB (A)","< 24",20]
[null,null,80,"LAFmax,n in dB (A)","< 27",10]
[null,null,81,"LAFmax,n in dB (A)","< 30",5]
[null,null,82,"LAFmax,n in dB (A)","< 35",0]
[null,null,83,"Nachweis durch Prognose",null,0]
[null,null,84,"Nachweis durch Bauakustikmessung",null,4]
[null,null,85,"LC - LA < 20 dB",null,2]
[]
["Anforderungen Geräusche aus Wasserinstallationen, haustechnischen Anlagen und Nutzergeräusch Urinieren"]
["Wasserinstallation, haustechnische Anlagen und Nutzergeräusch Urinieren [LAF,max,n]",null,null,null,null,null,null,"> 35 dB(A)","≤ 35 dB(A)","≤ 30 dB(A)","≤ 27 dB(A)","≤ 24 dB(A)","≤ 20 dB(A)"]
[]
["Anmerkung: Wenn keine tieffrequenten Geräuschanteile vorliegen, werden im Schallschutzausweis Bonuspunkte vergeben. Hiervon ist auszugehen, wenn die Differenz der C- und A-bewerteten Summenpegel gemäß DIN 45 680 kleiner als 20 dB ist.\nDie Anforderungen gelten auch für Heizungs- und Lüftungsanlagen im eigenen Bereich."]

{"sheet":"Nutzergeräusche, KHW","index":13,"n_rows":16,"n_cols":14,"rows_kept":16,"cut":false,"hidden":true,"merged":[[10,0,10,13],[14,0,14,5],[15,0,15,5],[0,0,0,1],[0,3,0,4],[2,0,2,1],[3,0,9,1],[3,6,8,6],[9,3,9,4]]}
["Bereich",null,"NR","Kriterium",null,"Punkte",null,"F","E","D","C","B","A","A*"]
[]
[null,null,null,"LAF,max,n","L'Kn,w"]
["Nutzergeräusche\nLAF,max,n in dB (A)\n\noder\n\nKörperschallentkopplung KHW\nL'Kn,w",null,86,"≤ 20","≤ 38",25]
[null,null,87,"≤ 25","≤ 43",20]
[null,null,88,"≤ 30","≤ 48",15]
[null,null,89,"≤ 35","≤ 53",10]
[null,null,90,"≤ 40","≤ 58",5]
[null,null,91,"≤ 45","≤ 63",0]
[null,null,92,"Nachweis durch Bauakustikmessung",null,4]
[]
[]
[]
["Orientierungswerte Nutzergeräusche und Körperschallentkopplung"]
["Nutzergeräusche [LAF,max,n]",null,null,null,null,null,null,"> 45 dB(A)","< 45 dB(A)","< 40 dB(A)","< 35 dB(A)","< 30 dB(A)","< 25 dB(A)","< 20 dB(A)"]
["Körperschallentkopplung Kleinhammerwerk [L'K,w]",null,null,null,null,null,null,"> 63 dB","< 63 dB","< 58 dB","< 53 dB","< 48 dB","< 43 dB","< 38 dB"]

{"sheet":"Baulicher Schallschutz (GR)","index":14,"n_rows":19,"n_cols":14,"rows_kept":19,"cut":false,"hidden":true,"merged":[[8,0,9,1],[8,3,8,4],[9,3,9,4],[0,0,0,1],[0,3,0,4],[1,0,1,1],[2,0,6,1],[2,3,2,4],[7,0,7,13],[2,6,6,6],[3,3,3,4],[4,3,4,4],[5,3,5,4],[6,3,6,4],[10,0,10,13],[11,0,18,1],[11,2,12,2],[11,3,12,4],[11,5,12,5],[11,6,18,6],[11,7,12,7],[11,8,12,8],[11,9,12,9],[11,10,12,10],[15,11,16,11],[15,12,16,12],[11,11,12,11],[11,12,12,12],[11,13,12,13],[13,2,14,2],[13,5,14,5],[13,9,14,9],[13,10,14,10],[13,11,14,11],[15,2,16,2],[15,5,16,5],[15,7,16,7],[15,8,16,8],[15,9,16,9],[15,10,16,10],[15,13,16,13],[17,2,18,2],[17,5,18,5],[17,7,18,7],[17,8,18,8],[17,9,18,9],[17,10,18,10],[17,11,18,11],[17,12,18,12],[17,13,18,13]]}
["Bereich",null,"NR","Kriterium",null,"Punkte",null,"F","E","D","C","B","A","A*"]
[]
["fremde Nutzer direkt angrenzend \n(mit gemeinsamer Trennfläche)",null,93,"0 - 1 Nachbarwohneinheit",null,20]
[null,null,94,"2 Nachbarwohneinheiten",null,15]
[null,null,95,"3 Nachbarwohneinheiten",null,10]
[null,null,96,"4 Nachbarwohneinheiten",null,5]
[null,null,97,"5 Nachbarwohneinheiten",null,0]
[]
["Anordnung der lauten Räume\nschalltechnisch \n(z.B. Bäder, Treppenhaus, Aufzug)",null,98,"günstig",null,5]
[null,null,99,"ungünstig",null,0]
[]
["besonders laute Räume gem. \nDIN 4109-1:2018-01 angrenzend\n(Gaststätten, Betriebe)\nLr,n in dB (A)",null,100,"keine besonders lauten Räume",null,15]
[]
[null,null,101,"Lr,n     t / n","25 / 15 dB (A)",10]
[null,null,null,"Lmax,n      t / n","35 / 25 dB (A)"]
[null,null,102,"Lr,n     t / n","30 / 20 dB (A)",5]
[null,null,null,"Lmax,n      t / n","40 / 30 dB (A)"]
[null,null,103,"Lr,n     t / n","35 / 25 dB (A)",0]
[null,null,null,"Lmax,n      t / n","45 / 35 dB (A)"]

{"sheet":"eigener Wohnbereich","index":15,"n_rows":6,"n_cols":14,"rows_kept":6,"cut":false,"hidden":true,"merged":[[2,6,5,6],[4,3,4,4],[5,3,5,4],[0,0,0,1],[0,3,0,4],[1,0,1,1],[2,0,5,1],[2,3,2,4],[3,3,3,4]]}
["Bereich",null,"NR","Kriterium",null,"Punkte",null,"F","E","D","C","B","A","A*"]
[]
[null,null,106,"Klasse EW3 erfüllt",null,15,null,null,null,null,null,null,null,"E"]
[null,null,107,"Klasse EW2 erfüllt",null,10,null,null,null,null,null,null,null,"E"]
[null,null,108,"Klasse EW1 erfüllt",null,5,null,null,null,null,null,null,"E"]
[null,null,109,"Keine Empfehlung vereinbart",null,0,null,null,null,null,null,null,"E"]

{"sheet":"Gebietscharakter","index":16,"n_rows":7,"n_cols":14,"rows_kept":7,"cut":false,"hidden":true,"merged":[[0,0,0,1],[0,3,0,4],[2,0,6,1],[2,6,6,6],[2,3,2,4],[3,3,3,4],[4,3,4,4],[5,3,5,4],[6,3,6,4]]}
["Bereich",null,"NR","Kriterium",null,"Punkte",null,"F","E","D","C","B","A","A*"]
[]
["Gebietscharakter \nnach TA - Lärm \nDIN 18005 \noder vergleichbaren \nkommunalen Einstufungen",null,1,"WR",null,30]
[null,null,2,"WA",null,20]
[null,null,3,"MI / WB",null,10]
[null,null,4,"GE",null,5]
[null,null,5,"GI",null,0]

{"sheet":"Außenlärmpegel","index":17,"n_rows":14,"n_cols":14,"rows_kept":14,"cut":false,"hidden":true,"merged":[[2,10,3,10],[2,11,3,11],[4,8,5,8],[4,9,5,9],[8,8,9,8],[8,9,9,9],[2,8,3,8],[2,9,3,9],[6,8,7,8],[6,9,7,9],[2,0,13,1],[2,3,3,3],[2,6,13,6],[2,7,3,7],[6,3,7,3],[6,7,7,7],[10,3,11,3],[10,7,11,7],[4,3,5,3],[4,7,5,7],[8,3,9,3],[8,7,9,7],[4,12,5,12],[4,13,5,13],[6,10,7,10],[6,11,7,11],[8,10,9,10],[8,11,9,11],[12,12,13,12],[12,13,13,13],[12,3,13,3],[12,7,13,7],[12,8,13,8],[12,9,13,9],[12,10,13,10],[12,11,13,11],[0,0,0,1],[0,3,0,4],[10,12,11,12],[10,13,11,13],[10,8,11,8],[10,9,11,9],[10,10,11,10],[10,11,11,11],[6,12,7,12],[6,13,7,13],[8,12,9,12],[8,13,9,13],[2,12,3,12],[2,13,3,13],[4,10,5,10],[4,11,5,11]]}
["Bereich",null,"NR","Kriterium",null,"Punkte",null,"F","E","D","C","B","A","A*"]
[]
["maßgeblicher Außenlärmpegel in dB(A) nach DIN 4109-1:2018-01 bzw. Lärmpegelbereich \n(Bahn, Straße, Gewerbe, Freizeit)",null,6,"I\nbis 55","Freibereich \nabgewandt",27]
[null,null,7,null,"Orientierung\nbeliebig",25]
[null,null,8,"II\n56 bis 60","Freibereich\nabgewandt",22]
[null,null,9,null,"Orientierung\nbeliebig",20]
[null,null,10,"III\n61 bis 65","Freibereich\nabgewandt",17]
[null,null,11,null,"Orientierung\nbeliebig",15]
[null,null,12,"IV\n66 bis 70","Freibereich\nabgewandt",12]
[null,null,13,null,"Orientierung\nbeliebig",10]
[null,null,14,"V\n71 bis 75","Freibereich\nabgewandt",7]
[null,null,15,null,"Orientierung\nbeliebig",5]
[null,null,16,"VI\n> 76","Freibereich\nabgewandt",2]
[null,null,17,null,"Orientierung\nbeliebig",0]

{"sheet":"LS Wände","index":18,"n_rows":15,"n_cols":14,"rows_kept":15,"cut":false,"hidden":true,"merged":[[14,0,14,5],[11,3,11,4],[9,3,9,4],[0,0,0,1],[0,3,0,4],[2,0,11,1],[2,3,2,4],[10,3,10,4],[9,6,10,6],[2,6,7,6],[3,3,3,4],[4,3,4,4],[5,3,5,4],[6,3,6,4],[7,3,7,4]]}
["Bereich",null,"NR","Kriterium",null,"Punkte",null,"F","E","D","C","B","A","A*"]
[]
["Wände\nR'w in dB",null,18,"³ 72",null,50]
[null,null,19,"³ 67",null,40]
[null,null,20,"³ 62",null,30]
[null,null,21,"³ 56",null,20]
[null,null,22,"³ 53",null,10]
[null,null,23,"³ 50",null,5]
[null,null,null,"Nachweis"]
[null,null,24,"rechnerischer Nachweis nach\nDIN 4109-1:2018-01",null,0]
[null,null,25,"mess-\ntechnischer Nachweis",null,8]
[null,null,26,"Anforderung bei R'w + Ctr,50-3150 erfüllt",null,4]
[]
["Anforderungen Luftschall"]
["Wände R'w in dB",null,null,null,null,null,null,"< 50 dB","> 50 dB","> 53 dB","> 56 dB","> 62 dB","> 67 dB","> 72 dB"]

{"sheet":"Baulicher Schallschutz (NHZ)","index":19,"n_rows":4,"n_cols":14,"rows_kept":4,"cut":false,"hidden":true,"merged":[[2,6,3,6],[3,3,3,4],[0,0,0,1],[0,3,0,4],[1,0,1,1],[2,0,3,1],[2,3,2,4]]}
["Bereich",null,"NR","Kriterium",null,"Punkte",null,"F","E","D","C","B","A","A*"]
[]
["Treppenhaus",null,104,"A/V > 0,20\nKein gemeinsames Treppenhaus",null,8,null,null,null,null,null,null,null,"E"]
[null,null,105,"A/V > 0,10",null,5,null,null,null,null,null,"E"]